Workbook

Sheet Sheet1
A1: الرئيسية | B1: =[1]الرئيسية!D4 -> 0 | Q1: الرئيسية | R1: =[1]الرئيسية!T4 -> 0
B2: رصيد اول | C2: سحب | D2: مسحوبات | E2: رصيد اخر | F2: رصيد نهاية اليوم | G2: العائد | R2: رصيد اول | S2: سحب | T2: مسحوبات | U2: رصيد اخر | V2: رصيد نهاية اليوم | W2: العائد
B3: 3000 | C3: =SUM(B6:B36) -> 150 | D3: =SUM(D6:D688) -> 1400 | E3: =+B3+C3-D3 -> 1750 | R3: 3000 | S3: =SUM(R6:R36) -> 16 | T3: =SUM(T6:T688) -> 24 | U3: =+R3+S3-T3 -> 2992
B4: حد السحب المسموح | D4: حد التحويل المسموح | K4: =COUNTIF(K8:K755,1) -> 0 | R4: حد السحب المسموح | T4: حد التحويل المسموح | AA4: =COUNTIF(AA8:AA755,1) -> 0
B5: =100000-B3-C3 -> 96850 | D5: =98000-D3 -> 96600 | R5: =100000-R3-S3 -> 96984 | T5: =98000-T3 -> 97976
B6: ســــــحب | R6: ســــــحب
B7: ايــــــداع | R7: ايــــــداع
A8: =[1]الرئيسية!J1 -> 2023-03-01 | G8: =IF(OR(J8=1,J8=6),I8+4,IF(OR(J8=2,J8=7),I8+3,IF(OR(J8=3,J8=8),I8+2,IF(OR(J8=4,J8=9),I8+1,I8)))) -> 0 | H8: =+D8+B8 -> 0 | I8: =+H8*0.01 -> 0 | J8: =IF(COLUMNS($J:J)>LEN($I8),"",INT(MOD($I8/10^(COLUMNS($J:J)-1),10))*10^(COLUMNS($J:J)-1)) -> 0 | K8: =IF(AND(A8=TODAY(),G29>0),1,"") ->  | Q8: =[1]الرئيسية!Z1 -> 00:00:00 | W8: =IF(OR(Z8=1,Z8=6),Y8+4,IF(OR(Z8=2,Z8=7),Y8+3,IF(OR(Z8=3,Z8=8),Y8+2,IF(OR(Z8=4,Z8=9),Y8+1,Y8)))) -> 0 | X8: =+T8+R8 -> 0 | Y8: =+X8*0.01 -> 0 | Z8: =IF(COLUMNS($J:Z)>LEN($I8),"",INT(MOD($I8/10^(COLUMNS($J:Z)-1),10))*10^(COLUMNS($J:Z)-1)) ->  | AA8: =IF(AND(Q8=TODAY(),W29>0),1,"") -> 
A9: 2023-03-01 | B9: 100 | C9: 2023-03-05T08:52:55 | G9: 5 | H9: 100 | I9: =+H9*0.01 -> 1 | J9: =IF(COLUMNS($J:J)>LEN($I9),"",INT(MOD($I9/10^(COLUMNS($J:J)-1),10))*10^(COLUMNS($J:J)-1)) -> 1 | Q9: 2023-03-01 | W9: 0 | X9: 0 | Y9: =+X9*0.01 -> 0 | Z9: =IF(COLUMNS($J:Z)>LEN($I9),"",INT(MOD($I9/10^(COLUMNS($J:Z)-1),10))*10^(COLUMNS($J:Z)-1)) -> 
A10: 2023-03-01 | G10: 0 | H10: 0 | I10: 0 | J10: =IF(COLUMNS($J:J)>LEN($I10),"",INT(MOD($I10/10^(COLUMNS($J:J)-1),10))*10^(COLUMNS($J:J)-1)) -> 0 | Q10: 2023-03-01 | W10: 0 | X10: 0 | Y10: 0 | Z10: =IF(COLUMNS($J:Z)>LEN($I10),"",INT(MOD($I10/10^(COLUMNS($J:Z)-1),10))*10^(COLUMNS($J:Z)-1)) -> 
A11: 2023-03-01 | D11: 500 | E11: 2023-03-05T08:52:59 | G11: 5 | H11: 500 | I11: 5 | J11: =IF(COLUMNS($J:J)>LEN($I11),"",INT(MOD($I11/10^(COLUMNS($J:J)-1),10))*10^(COLUMNS($J:J)-1)) -> 5 | Q11: 2023-03-01 | W11: 0 | X11: 0 | Y11: 0 | Z11: =IF(COLUMNS($J:Z)>LEN($I11),"",INT(MOD($I11/10^(COLUMNS($J:Z)-1),10))*10^(COLUMNS($J:Z)-1)) -> 
A12: 2023-03-01 | G12: 0 | H12: 0 | I12: 0 | J12: =IF(COLUMNS($J:J)>LEN($I12),"",INT(MOD($I12/10^(COLUMNS($J:J)-1),10))*10^(COLUMNS($J:J)-1)) -> 0 | Q12: 2023-03-01 | R12: 15 | S12: 2023-03-05T10:21:36 | W12: 0.15 | X12: 15 | Y12: 0.15 | Z12: =IF(COLUMNS($J:Z)>LEN($I12),"",INT(MOD($I12/10^(COLUMNS($J:Z)-1),10))*10^(COLUMNS($J:Z)-1)) -> 
A13: 2023-03-01 | G13: =IF(OR(J13=1,J13=6),I13+4,IF(OR(J13=2,J13=7),I13+3,IF(OR(J13=3,J13=8),I13+2,IF(OR(J13=4,J13=9),I13+1,I13)))) -> 0 | H13: 0 | I13: 0 | J13: =IF(COLUMNS($J:J)>LEN($I13),"",INT(MOD($I13/10^(COLUMNS($J:J)-1),10))*10^(COLUMNS($J:J)-1)) -> 0 | Q13: 2023-03-01 | W13: =IF(OR(Z13=1,Z13=6),Y13+4,IF(OR(Z13=2,Z13=7),Y13+3,IF(OR(Z13=3,Z13=8),Y13+2,IF(OR(Z13=4,Z13=9),Y13+1,Y13)))) -> 0 | X13: 0 | Y13: 0 | Z13: =IF(COLUMNS($J:Z)>LEN($I13),"",INT(MOD($I13/10^(COLUMNS($J:Z)-1),10))*10^(COLUMNS($J:Z)-1)) -> 
A14: 2023-03-01 | B14: 50 | C14: 2023-03-05T10:19:15 | G14: 0.5 | H14: 50 | I14: 0.5 | J14: =IF(COLUMNS($J:J)>LEN($I14),"",INT(MOD($I14/10^(COLUMNS($J:J)-1),10))*10^(COLUMNS($J:J)-1)) -> 0 | Q14: 2023-03-01 | W14: =IF(OR(Z14=1,Z14=6),Y14+4,IF(OR(Z14=2,Z14=7),Y14+3,IF(OR(Z14=3,Z14=8),Y14+2,IF(OR(Z14=4,Z14=9),Y14+1,Y14)))) -> 0 | X14: 0 | Y14: 0 | Z14: =IF(COLUMNS($J:Z)>LEN($I14),"",INT(MOD($I14/10^(COLUMNS($J:Z)-1),10))*10^(COLUMNS($J:Z)-1)) -> 
A15: 2023-03-01 | G15: 0 | H15: 0 | I15: 0 | J15: =IF(COLUMNS($J:J)>LEN($I15),"",INT(MOD($I15/10^(COLUMNS($J:J)-1),10))*10^(COLUMNS($J:J)-1)) -> 0 | Q15: 2023-03-01 | T15: 12 | U15: 2023-03-05T10:21:50 | W15: 0.12 | X15: 12 | Y15: 0.12 | Z15: =IF(COLUMNS($J:Z)>LEN($I15),"",INT(MOD($I15/10^(COLUMNS($J:Z)-1),10))*10^(COLUMNS($J:Z)-1)) -> 
A16: 2023-03-01 | D16: 900 | E16: 2023-03-05T10:19:56 | G16: 10 | H16: 900 | I16: 9 | J16: =IF(COLUMNS($J:J)>LEN($I16),"",INT(MOD($I16/10^(COLUMNS($J:J)-1),10))*10^(COLUMNS($J:J)-1)) -> 9 | Q16: 2023-03-01 | W16: 0 | X16: 0 | Y16: 0 | Z16: =IF(COLUMNS($J:Z)>LEN($I16),"",INT(MOD($I16/10^(COLUMNS($J:Z)-1),10))*10^(COLUMNS($J:Z)-1)) -> 
A17: 2023-03-01 | G17: 0 | H17: 0 | I17: 0 | J17: =IF(COLUMNS($J:J)>LEN($I17),"",INT(MOD($I17/10^(COLUMNS($J:J)-1),10))*10^(COLUMNS($J:J)-1)) -> 0 | Q17: 2023-03-01 | W17: 0 | X17: 0 | Y17: 0 | Z17: =IF(COLUMNS($J:Z)>LEN($I17),"",INT(MOD($I17/10^(COLUMNS($J:Z)-1),10))*10^(COLUMNS($J:Z)-1)) -> 
A18: 2023-03-01 | G18: 0 | H18: 0 | I18: 0 | J18: =IF(COLUMNS($J:J)>LEN($I18),"",INT(MOD($I18/10^(COLUMNS($J:J)-1),10))*10^(COLUMNS($J:J)-1)) -> 0 | Q18: 2023-03-01 | W18: 0 | X18: 0 | Y18: 0 | Z18: =IF(COLUMNS($J:Z)>LEN($I18),"",INT(MOD($I18/10^(COLUMNS($J:Z)-1),10))*10^(COLUMNS($J:Z)-1)) -> 
A19: 2023-03-01 | G19: 0 | H19: 0 | I19: 0 | J19: =IF(COLUMNS($J:J)>LEN($I19),"",INT(MOD($I19/10^(COLUMNS($J:J)-1),10))*10^(COLUMNS($J:J)-1)) -> 0 | Q19: 2023-03-01 | W19: 0 | X19: 0 | Y19: 0 | Z19: =IF(COLUMNS($J:Z)>LEN($I19),"",INT(MOD($I19/10^(COLUMNS($J:Z)-1),10))*10^(COLUMNS($J:Z)-1)) -> 
A20: 2023-03-01 | G20: 0 | H20: 0 | I20: 0 | J20: =IF(COLUMNS($J:J)>LEN($I20),"",INT(MOD($I20/10^(COLUMNS($J:J)-1),10))*10^(COLUMNS($J:J)-1)) -> 0 | Q20: 2023-03-01 | T20: 12 | U20: 2023-03-05T10:23:00 | W20: 0.12 | X20: 12 | Y20: 0.12 | Z20: =IF(COLUMNS($J:Z)>LEN($I20),"",INT(MOD($I20/10^(COLUMNS($J:Z)-1),10))*10^(COLUMNS($J:Z)-1)) -> 
A21: 2023-03-01 | G21: 0 | H21: 0 | I21: 0 | J21: =IF(COLUMNS($J:J)>LEN($I21),"",INT(MOD($I21/10^(COLUMNS($J:J)-1),10))*10^(COLUMNS($J:J)-1)) -> 0 | Q21: 2023-03-01 | W21: 0 | X21: 0 | Y21: 0 | Z21: =IF(COLUMNS($J:Z)>LEN($I21),"",INT(MOD($I21/10^(COLUMNS($J:Z)-1),10))*10^(COLUMNS($J:Z)-1)) -> 
A22: 2023-03-01 | G22: 0 | H22: 0 | I22: 0 | J22: =IF(COLUMNS($J:J)>LEN($I22),"",INT(MOD($I22/10^(COLUMNS($J:J)-1),10))*10^(COLUMNS($J:J)-1)) -> 0 | Q22: 2023-03-01 | W22: 0 | X22: 0 | Y22: 0 | Z22: =IF(COLUMNS($J:Z)>LEN($I22),"",INT(MOD($I22/10^(COLUMNS($J:Z)-1),10))*10^(COLUMNS($J:Z)-1)) -> 
A23: 2023-03-01 | G23: 0 | H23: 0 | I23: 0 | J23: =IF(COLUMNS($J:J)>LEN($I23),"",INT(MOD($I23/10^(COLUMNS($J:J)-1),10))*10^(COLUMNS($J:J)-1)) -> 0 | Q23: 2023-03-01 | R23: 1 | S23: 2023-03-05T10:23:03 | W23: 0.01 | X23: 1 | Y23: 0.01 | Z23: =IF(COLUMNS($J:Z)>LEN($I23),"",INT(MOD($I23/10^(COLUMNS($J:Z)-1),10))*10^(COLUMNS($J:Z)-1)) -> 
A24: 2023-03-01 | G24: 0 | H24: 0 | I24: 0 | J24: =IF(COLUMNS($J:J)>LEN($I24),"",INT(MOD($I24/10^(COLUMNS($J:J)-1),10))*10^(COLUMNS($J:J)-1)) -> 0 | Q24: 2023-03-01 | W24: 0 | X24: 0 | Y24: 0 | Z24: =IF(COLUMNS($J:Z)>LEN($I24),"",INT(MOD($I24/10^(COLUMNS($J:Z)-1),10))*10^(COLUMNS($J:Z)-1)) -> 
A25: 2023-03-01 | G25: 0 | H25: 0 | I25: 0 | J25: =IF(COLUMNS($J:J)>LEN($I25),"",INT(MOD($I25/10^(COLUMNS($J:J)-1),10))*10^(COLUMNS($J:J)-1)) -> 0 | Q25: 2023-03-01 | W25: 0 | X25: 0 | Y25: 0 | Z25: =IF(COLUMNS($J:Z)>LEN($I25),"",INT(MOD($I25/10^(COLUMNS($J:Z)-1),10))*10^(COLUMNS($J:Z)-1)) -> 
A26: 2023-03-01 | G26: 0 | H26: 0 | I26: 0 | J26: =IF(COLUMNS($J:J)>LEN($I26),"",INT(MOD($I26/10^(COLUMNS($J:J)-1),10))*10^(COLUMNS($J:J)-1)) -> 0 | Q26: 2023-03-01 | W26: 0 | X26: 0 | Y26: 0 | Z26: =IF(COLUMNS($J:Z)>LEN($I26),"",INT(MOD($I26/10^(COLUMNS($J:Z)-1),10))*10^(COLUMNS($J:Z)-1)) -> 
A27: 2023-03-01 | G27: 0 | H27: 0 | I27: 0 | J27: =IF(COLUMNS($J:J)>LEN($I27),"",INT(MOD($I27/10^(COLUMNS($J:J)-1),10))*10^(COLUMNS($J:J)-1)) -> 0 | Q27: 2023-03-01 | W27: 0 | X27: 0 | Y27: 0 | Z27: =IF(COLUMNS($J:Z)>LEN($I27),"",INT(MOD($I27/10^(COLUMNS($J:Z)-1),10))*10^(COLUMNS($J:Z)-1)) -> 
A28: 2023-03-01 | G28: 0 | H28: 0 | I28: 0 | J28: =IF(COLUMNS($J:J)>LEN($I28),"",INT(MOD($I28/10^(COLUMNS($J:J)-1),10))*10^(COLUMNS($J:J)-1)) -> 0 | Q28: 2023-03-01 | W28: 0 | X28: 0 | Y28: 0 | Z28: =IF(COLUMNS($J:Z)>LEN($I28),"",INT(MOD($I28/10^(COLUMNS($J:Z)-1),10))*10^(COLUMNS($J:Z)-1)) -> 
C29: رصيد نهاية يوم | E29: =A8 -> 2023-03-01 | F29: =SUM(B8:B28)+B3-SUM(D8:D28)-H29 -> 1746 | G29: =SUM(G8:G28) -> 20.5 | H29: =+I29+J29 -> 4 | I29: =COUNT(D8:D28) -> 2 | J29: =COUNT(B8:B28) -> 2 | S29: رصيد نهاية يوم | U29: =Q8 -> 00:00:00 | V29: =SUM(R8:R28)+R3-SUM(T8:T28)-X29 -> 2988 | W29: =SUM(W8:W28) -> 0.4 | X29: =+Y29+Z29 -> 4 | Y29: =COUNT(T8:T28) -> 2 | Z29: =COUNT(R8:R28) -> 2
A30: =+A8+1 -> 2023-03-02 | G30: 0 | H30: =+D30+B30 -> 0 | I30: 0 | J30: =IF(COLUMNS($J:J)>LEN($I30),"",INT(MOD($I30/10^(COLUMNS($J:J)-1),10))*10^(COLUMNS($J:J)-1)) -> 0 | K30: =IF(AND(A30=TODAY(),G51>0),1,"") ->  | Q30: =+Q8+1 -> 1900-01-01 | W30: =IF(OR(Z30=1,Z30=6),Y30+4,IF(OR(Z30=2,Z30=7),Y30+3,IF(OR(Z30=3,Z30=8),Y30+2,IF(OR(Z30=4,Z30=9),Y30+1,Y30)))) -> 0 | X30: =+T30+R30 -> 0 | Y30: =+X30*0.01 -> 0 | Z30: =IF(COLUMNS($J:Z)>LEN($I30),"",INT(MOD($I30/10^(COLUMNS($J:Z)-1),10))*10^(COLUMNS($J:Z)-1)) ->  | AA30: =IF(AND(Q30=TODAY(),W51>0),1,"") -> 
A31: =+A30 -> 2023-03-02 | G31: 0 | H31: 0 | I31: 0 | J31: =IF(COLUMNS($J:J)>LEN($I31),"",INT(MOD($I31/10^(COLUMNS($J:J)-1),10))*10^(COLUMNS($J:J)-1)) -> 0 | Q31: =+Q30 -> 1900-01-01 | W31: 0 | X31: 0 | Y31: 0 | Z31: =IF(COLUMNS($J:Z)>LEN($I31),"",INT(MOD($I31/10^(COLUMNS($J:Z)-1),10))*10^(COLUMNS($J:Z)-1)) -> 
A32: =+A31 -> 2023-03-02 | G32: 0 | H32: 0 | I32: 0 | J32: =IF(COLUMNS($J:J)>LEN($I32),"",INT(MOD($I32/10^(COLUMNS($J:J)-1),10))*10^(COLUMNS($J:J)-1)) -> 0 | Q32: =+Q31 -> 1900-01-01 | W32: 0 | X32: 0 | Y32: 0 | Z32: =IF(COLUMNS($J:Z)>LEN($I32),"",INT(MOD($I32/10^(COLUMNS($J:Z)-1),10))*10^(COLUMNS($J:Z)-1)) -> 
A33: 2023-03-02 | G33: 0 | H33: 0 | I33: 0 | J33: =IF(COLUMNS($J:J)>LEN($I33),"",INT(MOD($I33/10^(COLUMNS($J:J)-1),10))*10^(COLUMNS($J:J)-1)) -> 0 | Q33: 1900-01-01 | W33: 0 | X33: 0 | Y33: 0 | Z33: =IF(COLUMNS($J:Z)>LEN($I33),"",INT(MOD($I33/10^(COLUMNS($J:Z)-1),10))*10^(COLUMNS($J:Z)-1)) -> 
A34: 2023-03-02 | G34: 0 | H34: 0 | I34: 0 | J34: =IF(COLUMNS($J:J)>LEN($I34),"",INT(MOD($I34/10^(COLUMNS($J:J)-1),10))*10^(COLUMNS($J:J)-1)) -> 0 | Q34: 1900-01-01 | W34: 0 | X34: 0 | Y34: 0 | Z34: =IF(COLUMNS($J:Z)>LEN($I34),"",INT(MOD($I34/10^(COLUMNS($J:Z)-1),10))*10^(COLUMNS($J:Z)-1)) -> 
A35: 2023-03-02 | G35: 0 | H35: 0 | I35: 0 | J35: =IF(COLUMNS($J:J)>LEN($I35),"",INT(MOD($I35/10^(COLUMNS($J:J)-1),10))*10^(COLUMNS($J:J)-1)) -> 0 | Q35: 1900-01-01 | W35: 0 | X35: 0 | Y35: 0 | Z35: =IF(COLUMNS($J:Z)>LEN($I35),"",INT(MOD($I35/10^(COLUMNS($J:Z)-1),10))*10^(COLUMNS($J:Z)-1)) -> 
A36: 2023-03-02 | G36: 0 | H36: 0 | I36: 0 | J36: =IF(COLUMNS($J:J)>LEN($I36),"",INT(MOD($I36/10^(COLUMNS($J:J)-1),10))*10^(COLUMNS($J:J)-1)) -> 0 | Q36: 1900-01-01 | W36: 0 | X36: 0 | Y36: 0 | Z36: =IF(COLUMNS($J:Z)>LEN($I36),"",INT(MOD($I36/10^(COLUMNS($J:Z)-1),10))*10^(COLUMNS($J:Z)-1)) -> 
A37: 2023-03-02 | G37: 0 | H37: 0 | I37: 0 | J37: =IF(COLUMNS($J:J)>LEN($I37),"",INT(MOD($I37/10^(COLUMNS($J:J)-1),10))*10^(COLUMNS($J:J)-1)) -> 0 | Q37: 1900-01-01 | W37: 0 | X37: 0 | Y37: 0 | Z37: =IF(COLUMNS($J:Z)>LEN($I37),"",INT(MOD($I37/10^(COLUMNS($J:Z)-1),10))*10^(COLUMNS($J:Z)-1)) -> 
A38: 2023-03-02 | G38: 0 | H38: 0 | I38: 0 | J38: =IF(COLUMNS($J:J)>LEN($I38),"",INT(MOD($I38/10^(COLUMNS($J:J)-1),10))*10^(COLUMNS($J:J)-1)) -> 0 | Q38: 1900-01-01 | W38: 0 | X38: 0 | Y38: 0 | Z38: =IF(COLUMNS($J:Z)>LEN($I38),"",INT(MOD($I38/10^(COLUMNS($J:Z)-1),10))*10^(COLUMNS($J:Z)-1)) -> 
A39: 2023-03-02 | G39: 0 | H39: 0 | I39: 0 | J39: =IF(COLUMNS($J:J)>LEN($I39),"",INT(MOD($I39/10^(COLUMNS($J:J)-1),10))*10^(COLUMNS($J:J)-1)) -> 0 | Q39: 1900-01-01 | W39: 0 | X39: 0 | Y39: 0 | Z39: =IF(COLUMNS($J:Z)>LEN($I39),"",INT(MOD($I39/10^(COLUMNS($J:Z)-1),10))*10^(COLUMNS($J:Z)-1)) -> 
A40: 2023-03-02 | G40: 0 | H40: 0 | I40: 0 | J40: =IF(COLUMNS($J:J)>LEN($I40),"",INT(MOD($I40/10^(COLUMNS($J:J)-1),10))*10^(COLUMNS($J:J)-1)) -> 0 | Q40: 1900-01-01 | W40: 0 | X40: 0 | Y40: 0 | Z40: =IF(COLUMNS($J:Z)>LEN($I40),"",INT(MOD($I40/10^(COLUMNS($J:Z)-1),10))*10^(COLUMNS($J:Z)-1)) -> 
A41: 2023-03-02 | G41: 0 | H41: 0 | I41: 0 | J41: =IF(COLUMNS($J:J)>LEN($I41),"",INT(MOD($I41/10^(COLUMNS($J:J)-1),10))*10^(COLUMNS($J:J)-1)) -> 0 | Q41: 1900-01-01 | W41: 0 | X41: 0 | Y41: 0 | Z41: =IF(COLUMNS($J:Z)>LEN($I41),"",INT(MOD($I41/10^(COLUMNS($J:Z)-1),10))*10^(COLUMNS($J:Z)-1)) -> 
A42: 2023-03-02 | G42: 0 | H42: 0 | I42: 0 | J42: =IF(COLUMNS($J:J)>LEN($I42),"",INT(MOD($I42/10^(COLUMNS($J:J)-1),10))*10^(COLUMNS($J:J)-1)) -> 0 | Q42: 1900-01-01 | W42: 0 | X42: 0 | Y42: 0 | Z42: =IF(COLUMNS($J:Z)>LEN($I42),"",INT(MOD($I42/10^(COLUMNS($J:Z)-1),10))*10^(COLUMNS($J:Z)-1)) -> 
A43: 2023-03-02 | G43: 0 | H43: 0 | I43: 0 | J43: =IF(COLUMNS($J:J)>LEN($I43),"",INT(MOD($I43/10^(COLUMNS($J:J)-1),10))*10^(COLUMNS($J:J)-1)) -> 0 | Q43: 1900-01-01 | W43: 0 | X43: 0 | Y43: 0 | Z43: =IF(COLUMNS($J:Z)>LEN($I43),"",INT(MOD($I43/10^(COLUMNS($J:Z)-1),10))*10^(COLUMNS($J:Z)-1)) -> 
A44: 2023-03-02 | G44: 0 | H44: 0 | I44: 0 | J44: =IF(COLUMNS($J:J)>LEN($I44),"",INT(MOD($I44/10^(COLUMNS($J:J)-1),10))*10^(COLUMNS($J:J)-1)) -> 0 | Q44: 1900-01-01 | W44: 0 | X44: 0 | Y44: 0 | Z44: =IF(COLUMNS($J:Z)>LEN($I44),"",INT(MOD($I44/10^(COLUMNS($J:Z)-1),10))*10^(COLUMNS($J:Z)-1)) -> 
A45: 2023-03-02 | G45: 0 | H45: 0 | I45: 0 | J45: =IF(COLUMNS($J:J)>LEN($I45),"",INT(MOD($I45/10^(COLUMNS($J:J)-1),10))*10^(COLUMNS($J:J)-1)) -> 0 | Q45: 1900-01-01 | W45: 0 | X45: 0 | Y45: 0 | Z45: =IF(COLUMNS($J:Z)>LEN($I45),"",INT(MOD($I45/10^(COLUMNS($J:Z)-1),10))*10^(COLUMNS($J:Z)-1)) -> 
A46: 2023-03-02 | G46: 0 | H46: 0 | I46: 0 | J46: =IF(COLUMNS($J:J)>LEN($I46),"",INT(MOD($I46/10^(COLUMNS($J:J)-1),10))*10^(COLUMNS($J:J)-1)) -> 0 | Q46: 1900-01-01 | W46: 0 | X46: 0 | Y46: 0 | Z46: =IF(COLUMNS($J:Z)>LEN($I46),"",INT(MOD($I46/10^(COLUMNS($J:Z)-1),10))*10^(COLUMNS($J:Z)-1)) -> 
A47: 2023-03-02 | G47: 0 | H47: 0 | I47: 0 | J47: =IF(COLUMNS($J:J)>LEN($I47),"",INT(MOD($I47/10^(COLUMNS($J:J)-1),10))*10^(COLUMNS($J:J)-1)) -> 0 | Q47: 1900-01-01 | W47: 0 | X47: 0 | Y47: 0 | Z47: =IF(COLUMNS($J:Z)>LEN($I47),"",INT(MOD($I47/10^(COLUMNS($J:Z)-1),10))*10^(COLUMNS($J:Z)-1)) -> 
A48: 2023-03-02 | G48: 0 | H48: 0 | I48: 0 | J48: =IF(COLUMNS($J:J)>LEN($I48),"",INT(MOD($I48/10^(COLUMNS($J:J)-1),10))*10^(COLUMNS($J:J)-1)) -> 0 | Q48: 1900-01-01 | W48: 0 | X48: 0 | Y48: 0 | Z48: =IF(COLUMNS($J:Z)>LEN($I48),"",INT(MOD($I48/10^(COLUMNS($J:Z)-1),10))*10^(COLUMNS($J:Z)-1)) -> 
A49: 2023-03-02 | G49: 0 | H49: 0 | I49: 0 | J49: =IF(COLUMNS($J:J)>LEN($I49),"",INT(MOD($I49/10^(COLUMNS($J:J)-1),10))*10^(COLUMNS($J:J)-1)) -> 0 | Q49: 1900-01-01 | W49: 0 | X49: 0 | Y49: 0 | Z49: =IF(COLUMNS($J:Z)>LEN($I49),"",INT(MOD($I49/10^(COLUMNS($J:Z)-1),10))*10^(COLUMNS($J:Z)-1)) -> 
A50: 2023-03-02 | E50: شحن من الماكنة | G50: 0 | H50: 0 | I50: 0 | J50: =IF(COLUMNS($J:J)>LEN($I50),"",INT(MOD($I50/10^(COLUMNS($J:J)-1),10))*10^(COLUMNS($J:J)-1)) -> 0 | Q50: 1900-01-01 | U50: شحن من الماكنة | W50: 0 | X50: 0 | Y50: 0 | Z50: =IF(COLUMNS($J:Z)>LEN($I50),"",INT(MOD($I50/10^(COLUMNS($J:Z)-1),10))*10^(COLUMNS($J:Z)-1)) -> 
C51: رصيد نهاية يوم | E51: =A30 -> 2023-03-02 | F51: =SUM(B30:B50)+F29-SUM(D30:D50)+F50-H51 -> 1746 | G51: =SUM(G30:G50) -> 0 | H51: =+I51+J51 -> 0 | I51: =COUNT(D30:D50) -> 0 | J51: =COUNT(B30:B50) -> 0 | S51: رصيد نهاية يوم | U51: =Q30 -> 1900-01-01 | V51: =SUM(R30:R50)+V29-SUM(T30:T50)+V50-X51 -> 2988 | W51: =SUM(W30:W50) -> 0 | X51: =+Y51+Z51 -> 0 | Y51: =COUNT(T30:T50) -> 0 | Z51: =COUNT(R30:R50) -> 0
A52: =+A30+1 -> 2023-03-03 | G52: =IF(OR(J52=1,J52=6),I52+4,IF(OR(J52=2,J52=7),I52+3,IF(OR(J52=3,J52=8),I52+2,IF(OR(J52=4,J52=9),I52+1,I52)))) -> 0 | H52: =+D52+B52 -> 0 | I52: =+H52*0.01 -> 0 | J52: =IF(COLUMNS($J:J)>LEN($I52),"",INT(MOD($I52/10^(COLUMNS($J:J)-1),10))*10^(COLUMNS($J:J)-1)) -> 0 | K52: =IF(AND(A52=TODAY(),G73>0),1,"") ->  | Q52: =+Q30+1 -> 1900-01-02 | W52: =IF(OR(Z52=1,Z52=6),Y52+4,IF(OR(Z52=2,Z52=7),Y52+3,IF(OR(Z52=3,Z52=8),Y52+2,IF(OR(Z52=4,Z52=9),Y52+1,Y52)))) -> 0 | X52: =+T52+R52 -> 0 | Y52: =+X52*0.01 -> 0 | Z52: =IF(COLUMNS($J:Z)>LEN($I52),"",INT(MOD($I52/10^(COLUMNS($J:Z)-1),10))*10^(COLUMNS($J:Z)-1)) ->  | AA52: =IF(AND(Q52=TODAY(),W73>0),1,"") -> 
A53: =+A52 -> 2023-03-03 | G53: 0 | H53: 0 | I53: 0 | J53: =IF(COLUMNS($J:J)>LEN($I53),"",INT(MOD($I53/10^(COLUMNS($J:J)-1),10))*10^(COLUMNS($J:J)-1)) -> 0 | Q53: =+Q52 -> 1900-01-02 | W53: 0 | X53: 0 | Y53: 0 | Z53: =IF(COLUMNS($J:Z)>LEN($I53),"",INT(MOD($I53/10^(COLUMNS($J:Z)-1),10))*10^(COLUMNS($J:Z)-1)) -> 
A54: =+A53 -> 2023-03-03 | G54: 0 | H54: 0 | I54: 0 | J54: =IF(COLUMNS($J:J)>LEN($I54),"",INT(MOD($I54/10^(COLUMNS($J:J)-1),10))*10^(COLUMNS($J:J)-1)) -> 0 | Q54: =+Q53 -> 1900-01-02 | W54: 0 | X54: 0 | Y54: 0 | Z54: =IF(COLUMNS($J:Z)>LEN($I54),"",INT(MOD($I54/10^(COLUMNS($J:Z)-1),10))*10^(COLUMNS($J:Z)-1)) -> 
A55: 2023-03-03 | G55: 0 | H55: 0 | I55: 0 | J55: =IF(COLUMNS($J:J)>LEN($I55),"",INT(MOD($I55/10^(COLUMNS($J:J)-1),10))*10^(COLUMNS($J:J)-1)) -> 0 | Q55: 1900-01-02 | W55: 0 | X55: 0 | Y55: 0 | Z55: =IF(COLUMNS($J:Z)>LEN($I55),"",INT(MOD($I55/10^(COLUMNS($J:Z)-1),10))*10^(COLUMNS($J:Z)-1)) -> 
A56: 2023-03-03 | G56: 0 | H56: 0 | I56: 0 | J56: =IF(COLUMNS($J:J)>LEN($I56),"",INT(MOD($I56/10^(COLUMNS($J:J)-1),10))*10^(COLUMNS($J:J)-1)) -> 0 | Q56: 1900-01-02 | W56: 0 | X56: 0 | Y56: 0 | Z56: =IF(COLUMNS($J:Z)>LEN($I56),"",INT(MOD($I56/10^(COLUMNS($J:Z)-1),10))*10^(COLUMNS($J:Z)-1)) -> 
A57: 2023-03-03 | G57: 0 | H57: 0 | I57: 0 | J57: =IF(COLUMNS($J:J)>LEN($I57),"",INT(MOD($I57/10^(COLUMNS($J:J)-1),10))*10^(COLUMNS($J:J)-1)) -> 0 | Q57: 1900-01-02 | W57: 0 | X57: 0 | Y57: 0 | Z57: =IF(COLUMNS($J:Z)>LEN($I57),"",INT(MOD($I57/10^(COLUMNS($J:Z)-1),10))*10^(COLUMNS($J:Z)-1)) -> 
A58: 2023-03-03 | G58: 0 | H58: 0 | I58: 0 | J58: =IF(COLUMNS($J:J)>LEN($I58),"",INT(MOD($I58/10^(COLUMNS($J:J)-1),10))*10^(COLUMNS($J:J)-1)) -> 0 | Q58: 1900-01-02 | W58: 0 | X58: 0 | Y58: 0 | Z58: =IF(COLUMNS($J:Z)>LEN($I58),"",INT(MOD($I58/10^(COLUMNS($J:Z)-1),10))*10^(COLUMNS($J:Z)-1)) -> 
A59: 2023-03-03 | G59: 0 | H59: 0 | I59: 0 | J59: =IF(COLUMNS($J:J)>LEN($I59),"",INT(MOD($I59/10^(COLUMNS($J:J)-1),10))*10^(COLUMNS($J:J)-1)) -> 0 | Q59: 1900-01-02 | W59: 0 | X59: 0 | Y59: 0 | Z59: =IF(COLUMNS($J:Z)>LEN($I59),"",INT(MOD($I59/10^(COLUMNS($J:Z)-1),10))*10^(COLUMNS($J:Z)-1)) -> 
A60: 2023-03-03 | G60: 0 | H60: 0 | I60: 0 | J60: =IF(COLUMNS($J:J)>LEN($I60),"",INT(MOD($I60/10^(COLUMNS($J:J)-1),10))*10^(COLUMNS($J:J)-1)) -> 0 | Q60: 1900-01-02 | W60: 0 | X60: 0 | Y60: 0 | Z60: =IF(COLUMNS($J:Z)>LEN($I60),"",INT(MOD($I60/10^(COLUMNS($J:Z)-1),10))*10^(COLUMNS($J:Z)-1)) -> 
A61: 2023-03-03 | G61: 0 | H61: 0 | I61: 0 | J61: =IF(COLUMNS($J:J)>LEN($I61),"",INT(MOD($I61/10^(COLUMNS($J:J)-1),10))*10^(COLUMNS($J:J)-1)) -> 0 | Q61: 1900-01-02 | W61: 0 | X61: 0 | Y61: 0 | Z61: =IF(COLUMNS($J:Z)>LEN($I61),"",INT(MOD($I61/10^(COLUMNS($J:Z)-1),10))*10^(COLUMNS($J:Z)-1)) -> 
A62: 2023-03-03 | G62: 0 | H62: 0 | I62: 0 | J62: =IF(COLUMNS($J:J)>LEN($I62),"",INT(MOD($I62/10^(COLUMNS($J:J)-1),10))*10^(COLUMNS($J:J)-1)) -> 0 | Q62: 1900-01-02 | W62: 0 | X62: 0 | Y62: 0 | Z62: =IF(COLUMNS($J:Z)>LEN($I62),"",INT(MOD($I62/10^(COLUMNS($J:Z)-1),10))*10^(COLUMNS($J:Z)-1)) -> 
A63: 2023-03-03 | G63: 0 | H63: 0 | I63: 0 | J63: =IF(COLUMNS($J:J)>LEN($I63),"",INT(MOD($I63/10^(COLUMNS($J:J)-1),10))*10^(COLUMNS($J:J)-1)) -> 0 | Q63: 1900-01-02 | W63: 0 | X63: 0 | Y63: 0 | Z63: =IF(COLUMNS($J:Z)>LEN($I63),"",INT(MOD($I63/10^(COLUMNS($J:Z)-1),10))*10^(COLUMNS($J:Z)-1)) -> 
A64: 2023-03-03 | G64: 0 | H64: 0 | I64: 0 | J64: =IF(COLUMNS($J:J)>LEN($I64),"",INT(MOD($I64/10^(COLUMNS($J:J)-1),10))*10^(COLUMNS($J:J)-1)) -> 0 | Q64: 1900-01-02 | W64: 0 | X64: 0 | Y64: 0 | Z64: =IF(COLUMNS($J:Z)>LEN($I64),"",INT(MOD($I64/10^(COLUMNS($J:Z)-1),10))*10^(COLUMNS($J:Z)-1)) -> 
A65: 2023-03-03 | G65: 0 | H65: 0 | I65: 0 | J65: =IF(COLUMNS($J:J)>LEN($I65),"",INT(MOD($I65/10^(COLUMNS($J:J)-1),10))*10^(COLUMNS($J:J)-1)) -> 0 | Q65: 1900-01-02 | W65: 0 | X65: 0 | Y65: 0 | Z65: =IF(COLUMNS($J:Z)>LEN($I65),"",INT(MOD($I65/10^(COLUMNS($J:Z)-1),10))*10^(COLUMNS($J:Z)-1)) -> 
A66: 2023-03-03 | G66: 0 | H66: 0 | I66: 0 | J66: =IF(COLUMNS($J:J)>LEN($I66),"",INT(MOD($I66/10^(COLUMNS($J:J)-1),10))*10^(COLUMNS($J:J)-1)) -> 0 | Q66: 1900-01-02 | W66: 0 | X66: 0 | Y66: 0 | Z66: =IF(COLUMNS($J:Z)>LEN($I66),"",INT(MOD($I66/10^(COLUMNS($J:Z)-1),10))*10^(COLUMNS($J:Z)-1)) -> 
A67: 2023-03-03 | G67: 0 | H67: 0 | I67: 0 | J67: =IF(COLUMNS($J:J)>LEN($I67),"",INT(MOD($I67/10^(COLUMNS($J:J)-1),10))*10^(COLUMNS($J:J)-1)) -> 0 | Q67: 1900-01-02 | W67: 0 | X67: 0 | Y67: 0 | Z67: =IF(COLUMNS($J:Z)>LEN($I67),"",INT(MOD($I67/10^(COLUMNS($J:Z)-1),10))*10^(COLUMNS($J:Z)-1)) -> 
A68: 2023-03-03 | G68: 0 | H68: 0 | I68: 0 | J68: =IF(COLUMNS($J:J)>LEN($I68),"",INT(MOD($I68/10^(COLUMNS($J:J)-1),10))*10^(COLUMNS($J:J)-1)) -> 0 | Q68: 1900-01-02 | W68: 0 | X68: 0 | Y68: 0 | Z68: =IF(COLUMNS($J:Z)>LEN($I68),"",INT(MOD($I68/10^(COLUMNS($J:Z)-1),10))*10^(COLUMNS($J:Z)-1)) -> 
A69: 2023-03-03 | G69: 0 | H69: 0 | I69: 0 | J69: =IF(COLUMNS($J:J)>LEN($I69),"",INT(MOD($I69/10^(COLUMNS($J:J)-1),10))*10^(COLUMNS($J:J)-1)) -> 0 | Q69: 1900-01-02 | W69: 0 | X69: 0 | Y69: 0 | Z69: =IF(COLUMNS($J:Z)>LEN($I69),"",INT(MOD($I69/10^(COLUMNS($J:Z)-1),10))*10^(COLUMNS($J:Z)-1)) -> 
A70: 2023-03-03 | G70: 0 | H70: 0 | I70: 0 | J70: =IF(COLUMNS($J:J)>LEN($I70),"",INT(MOD($I70/10^(COLUMNS($J:J)-1),10))*10^(COLUMNS($J:J)-1)) -> 0 | Q70: 1900-01-02 | W70: 0 | X70: 0 | Y70: 0 | Z70: =IF(COLUMNS($J:Z)>LEN($I70),"",INT(MOD($I70/10^(COLUMNS($J:Z)-1),10))*10^(COLUMNS($J:Z)-1)) -> 
A71: 2023-03-03 | G71: 0 | H71: 0 | I71: 0 | J71: =IF(COLUMNS($J:J)>LEN($I71),"",INT(MOD($I71/10^(COLUMNS($J:J)-1),10))*10^(COLUMNS($J:J)-1)) -> 0 | Q71: 1900-01-02 | W71: 0 | X71: 0 | Y71: 0 | Z71: =IF(COLUMNS($J:Z)>LEN($I71),"",INT(MOD($I71/10^(COLUMNS($J:Z)-1),10))*10^(COLUMNS($J:Z)-1)) -> 
A72: 2023-03-03 | E72: شحن من الماكنة | G72: 0 | H72: 0 | I72: 0 | J72: =IF(COLUMNS($J:J)>LEN($I72),"",INT(MOD($I72/10^(COLUMNS($J:J)-1),10))*10^(COLUMNS($J:J)-1)) -> 0 | Q72: 1900-01-02 | U72: شحن من الماكنة | W72: 0 | X72: 0 | Y72: 0 | Z72: =IF(COLUMNS($J:Z)>LEN($I72),"",INT(MOD($I72/10^(COLUMNS($J:Z)-1),10))*10^(COLUMNS($J:Z)-1)) -> 
C73: رصيد نهاية يوم | E73: =A52 -> 2023-03-03 | F73: =SUM(B52:B72)+F51-SUM(D52:D72)+F72-H73 -> 1746 | G73: =SUM(G52:G72) -> 0 | H73: =+I73+J73 -> 0 | I73: =COUNT(D52:D72) -> 0 | J73: =COUNT(B52:B72) -> 0 | S73: رصيد نهاية يوم | U73: =Q52 -> 1900-01-02 | V73: =SUM(R52:R72)+V51-SUM(T52:T72)+V72-X73 -> 2988 | W73: =SUM(W52:W72) -> 0 | X73: =+Y73+Z73 -> 0 | Y73: =COUNT(T52:T72) -> 0 | Z73: =COUNT(R52:R72) -> 0
A74: =+A52+1 -> 2023-03-04 | G74: =IF(OR(J74=1,J74=6),I74+4,IF(OR(J74=2,J74=7),I74+3,IF(OR(J74=3,J74=8),I74+2,IF(OR(J74=4,J74=9),I74+1,I74)))) -> 0 | H74: =+D74+B74 -> 0 | I74: =+H74*0.01 -> 0 | J74: =IF(COLUMNS($J:J)>LEN($I74),"",INT(MOD($I74/10^(COLUMNS($J:J)-1),10))*10^(COLUMNS($J:J)-1)) -> 0 | K74: =IF(AND(A74=TODAY(),G95>0),1,"") ->  | Q74: =+Q52+1 -> 1900-01-03 | W74: =IF(OR(Z74=1,Z74=6),Y74+4,IF(OR(Z74=2,Z74=7),Y74+3,IF(OR(Z74=3,Z74=8),Y74+2,IF(OR(Z74=4,Z74=9),Y74+1,Y74)))) -> 0 | X74: =+T74+R74 -> 0 | Y74: =+X74*0.01 -> 0 | Z74: =IF(COLUMNS($J:Z)>LEN($I74),"",INT(MOD($I74/10^(COLUMNS($J:Z)-1),10))*10^(COLUMNS($J:Z)-1)) ->  | AA74: =IF(AND(Q74=TODAY(),W95>0),1,"") -> 
A75: =+A74 -> 2023-03-04 | G75: 0 | H75: 0 | I75: 0 | J75: =IF(COLUMNS($J:J)>LEN($I75),"",INT(MOD($I75/10^(COLUMNS($J:J)-1),10))*10^(COLUMNS($J:J)-1)) -> 0 | Q75: =+Q74 -> 1900-01-03 | W75: 0 | X75: 0 | Y75: 0 | Z75: =IF(COLUMNS($J:Z)>LEN($I75),"",INT(MOD($I75/10^(COLUMNS($J:Z)-1),10))*10^(COLUMNS($J:Z)-1)) -> 
A76: =+A75 -> 2023-03-04 | G76: 0 | H76: 0 | I76: 0 | J76: =IF(COLUMNS($J:J)>LEN($I76),"",INT(MOD($I76/10^(COLUMNS($J:J)-1),10))*10^(COLUMNS($J:J)-1)) -> 0 | Q76: =+Q75 -> 1900-01-03 | W76: 0 | X76: 0 | Y76: 0 | Z76: =IF(COLUMNS($J:Z)>LEN($I76),"",INT(MOD($I76/10^(COLUMNS($J:Z)-1),10))*10^(COLUMNS($J:Z)-1)) -> 
A77: 2023-03-04 | G77: 0 | H77: 0 | I77: 0 | J77: =IF(COLUMNS($J:J)>LEN($I77),"",INT(MOD($I77/10^(COLUMNS($J:J)-1),10))*10^(COLUMNS($J:J)-1)) -> 0 | Q77: 1900-01-03 | W77: 0 | X77: 0 | Y77: 0 | Z77: =IF(COLUMNS($J:Z)>LEN($I77),"",INT(MOD($I77/10^(COLUMNS($J:Z)-1),10))*10^(COLUMNS($J:Z)-1)) -> 
A78: 2023-03-04 | G78: 0 | H78: 0 | I78: 0 | J78: =IF(COLUMNS($J:J)>LEN($I78),"",INT(MOD($I78/10^(COLUMNS($J:J)-1),10))*10^(COLUMNS($J:J)-1)) -> 0 | Q78: 1900-01-03 | W78: 0 | X78: 0 | Y78: 0 | Z78: =IF(COLUMNS($J:Z)>LEN($I78),"",INT(MOD($I78/10^(COLUMNS($J:Z)-1),10))*10^(COLUMNS($J:Z)-1)) -> 
A79: 2023-03-04 | G79: 0 | H79: 0 | I79: 0 | J79: =IF(COLUMNS($J:J)>LEN($I79),"",INT(MOD($I79/10^(COLUMNS($J:J)-1),10))*10^(COLUMNS($J:J)-1)) -> 0 | Q79: 1900-01-03 | W79: 0 | X79: 0 | Y79: 0 | Z79: =IF(COLUMNS($J:Z)>LEN($I79),"",INT(MOD($I79/10^(COLUMNS($J:Z)-1),10))*10^(COLUMNS($J:Z)-1)) -> 
A80: 2023-03-04 | G80: 0 | H80: 0 | I80: 0 | J80: =IF(COLUMNS($J:J)>LEN($I80),"",INT(MOD($I80/10^(COLUMNS($J:J)-1),10))*10^(COLUMNS($J:J)-1)) -> 0 | Q80: 1900-01-03 | W80: 0 | X80: 0 | Y80: 0 | Z80: =IF(COLUMNS($J:Z)>LEN($I80),"",INT(MOD($I80/10^(COLUMNS($J:Z)-1),10))*10^(COLUMNS($J:Z)-1)) -> 
A81: 2023-03-04 | G81: 0 | H81: 0 | I81: 0 | J81: =IF(COLUMNS($J:J)>LEN($I81),"",INT(MOD($I81/10^(COLUMNS($J:J)-1),10))*10^(COLUMNS($J:J)-1)) -> 0 | Q81: 1900-01-03 | W81: 0 | X81: 0 | Y81: 0 | Z81: =IF(COLUMNS($J:Z)>LEN($I81),"",INT(MOD($I81/10^(COLUMNS($J:Z)-1),10))*10^(COLUMNS($J:Z)-1)) -> 
A82: 2023-03-04 | G82: 0 | H82: 0 | I82: 0 | J82: =IF(COLUMNS($J:J)>LEN($I82),"",INT(MOD($I82/10^(COLUMNS($J:J)-1),10))*10^(COLUMNS($J:J)-1)) -> 0 | Q82: 1900-01-03 | W82: 0 | X82: 0 | Y82: 0 | Z82: =IF(COLUMNS($J:Z)>LEN($I82),"",INT(MOD($I82/10^(COLUMNS($J:Z)-1),10))*10^(COLUMNS($J:Z)-1)) -> 
A83: 2023-03-04 | G83: 0 | H83: 0 | I83: 0 | J83: =IF(COLUMNS($J:J)>LEN($I83),"",INT(MOD($I83/10^(COLUMNS($J:J)-1),10))*10^(COLUMNS($J:J)-1)) -> 0 | Q83: 1900-01-03 | W83: 0 | X83: 0 | Y83: 0 | Z83: =IF(COLUMNS($J:Z)>LEN($I83),"",INT(MOD($I83/10^(COLUMNS($J:Z)-1),10))*10^(COLUMNS($J:Z)-1)) -> 
A84: 2023-03-04 | G84: 0 | H84: 0 | I84: 0 | J84: =IF(COLUMNS($J:J)>LEN($I84),"",INT(MOD($I84/10^(COLUMNS($J:J)-1),10))*10^(COLUMNS($J:J)-1)) -> 0 | Q84: 1900-01-03 | W84: 0 | X84: 0 | Y84: 0 | Z84: =IF(COLUMNS($J:Z)>LEN($I84),"",INT(MOD($I84/10^(COLUMNS($J:Z)-1),10))*10^(COLUMNS($J:Z)-1)) -> 
A85: 2023-03-04 | G85: 0 | H85: 0 | I85: 0 | J85: =IF(COLUMNS($J:J)>LEN($I85),"",INT(MOD($I85/10^(COLUMNS($J:J)-1),10))*10^(COLUMNS($J:J)-1)) -> 0 | Q85: 1900-01-03 | W85: 0 | X85: 0 | Y85: 0 | Z85: =IF(COLUMNS($J:Z)>LEN($I85),"",INT(MOD($I85/10^(COLUMNS($J:Z)-1),10))*10^(COLUMNS($J:Z)-1)) -> 
A86: 2023-03-04 | G86: 0 | H86: 0 | I86: 0 | J86: =IF(COLUMNS($J:J)>LEN($I86),"",INT(MOD($I86/10^(COLUMNS($J:J)-1),10))*10^(COLUMNS($J:J)-1)) -> 0 | Q86: 1900-01-03 | W86: 0 | X86: 0 | Y86: 0 | Z86: =IF(COLUMNS($J:Z)>LEN($I86),"",INT(MOD($I86/10^(COLUMNS($J:Z)-1),10))*10^(COLUMNS($J:Z)-1)) -> 
A87: 2023-03-04 | G87: 0 | H87: 0 | I87: 0 | J87: =IF(COLUMNS($J:J)>LEN($I87),"",INT(MOD($I87/10^(COLUMNS($J:J)-1),10))*10^(COLUMNS($J:J)-1)) -> 0 | Q87: 1900-01-03 | W87: 0 | X87: 0 | Y87: 0 | Z87: =IF(COLUMNS($J:Z)>LEN($I87),"",INT(MOD($I87/10^(COLUMNS($J:Z)-1),10))*10^(COLUMNS($J:Z)-1)) -> 
A88: 2023-03-04 | G88: 0 | H88: 0 | I88: 0 | J88: =IF(COLUMNS($J:J)>LEN($I88),"",INT(MOD($I88/10^(COLUMNS($J:J)-1),10))*10^(COLUMNS($J:J)-1)) -> 0 | Q88: 1900-01-03 | W88: 0 | X88: 0 | Y88: 0 | Z88: =IF(COLUMNS($J:Z)>LEN($I88),"",INT(MOD($I88/10^(COLUMNS($J:Z)-1),10))*10^(COLUMNS($J:Z)-1)) -> 
A89: 2023-03-04 | G89: 0 | H89: 0 | I89: 0 | J89: =IF(COLUMNS($J:J)>LEN($I89),"",INT(MOD($I89/10^(COLUMNS($J:J)-1),10))*10^(COLUMNS($J:J)-1)) -> 0 | Q89: 1900-01-03 | W89: 0 | X89: 0 | Y89: 0 | Z89: =IF(COLUMNS($J:Z)>LEN($I89),"",INT(MOD($I89/10^(COLUMNS($J:Z)-1),10))*10^(COLUMNS($J:Z)-1)) -> 
A90: 2023-03-04 | G90: 0 | H90: 0 | I90: 0 | J90: =IF(COLUMNS($J:J)>LEN($I90),"",INT(MOD($I90/10^(COLUMNS($J:J)-1),10))*10^(COLUMNS($J:J)-1)) -> 0 | Q90: 1900-01-03 | W90: 0 | X90: 0 | Y90: 0 | Z90: =IF(COLUMNS($J:Z)>LEN($I90),"",INT(MOD($I90/10^(COLUMNS($J:Z)-1),10))*10^(COLUMNS($J:Z)-1)) -> 
A91: 2023-03-04 | G91: 0 | H91: 0 | I91: 0 | J91: =IF(COLUMNS($J:J)>LEN($I91),"",INT(MOD($I91/10^(COLUMNS($J:J)-1),10))*10^(COLUMNS($J:J)-1)) -> 0 | Q91: 1900-01-03 | W91: 0 | X91: 0 | Y91: 0 | Z91: =IF(COLUMNS($J:Z)>LEN($I91),"",INT(MOD($I91/10^(COLUMNS($J:Z)-1),10))*10^(COLUMNS($J:Z)-1)) -> 
A92: 2023-03-04 | G92: 0 | H92: 0 | I92: 0 | J92: =IF(COLUMNS($J:J)>LEN($I92),"",INT(MOD($I92/10^(COLUMNS($J:J)-1),10))*10^(COLUMNS($J:J)-1)) -> 0 | Q92: 1900-01-03 | W92: 0 | X92: 0 | Y92: 0 | Z92: =IF(COLUMNS($J:Z)>LEN($I92),"",INT(MOD($I92/10^(COLUMNS($J:Z)-1),10))*10^(COLUMNS($J:Z)-1)) -> 
A93: 2023-03-04 | G93: 0 | H93: 0 | I93: 0 | J93: =IF(COLUMNS($J:J)>LEN($I93),"",INT(MOD($I93/10^(COLUMNS($J:J)-1),10))*10^(COLUMNS($J:J)-1)) -> 0 | Q93: 1900-01-03 | W93: 0 | X93: 0 | Y93: 0 | Z93: =IF(COLUMNS($J:Z)>LEN($I93),"",INT(MOD($I93/10^(COLUMNS($J:Z)-1),10))*10^(COLUMNS($J:Z)-1)) -> 
A94: 2023-03-04 | E94: شحن من الماكنة | G94: 0 | H94: 0 | I94: 0 | J94: =IF(COLUMNS($J:J)>LEN($I94),"",INT(MOD($I94/10^(COLUMNS($J:J)-1),10))*10^(COLUMNS($J:J)-1)) -> 0 | Q94: 1900-01-03 | U94: شحن من الماكنة | W94: 0 | X94: 0 | Y94: 0 | Z94: =IF(COLUMNS($J:Z)>LEN($I94),"",INT(MOD($I94/10^(COLUMNS($J:Z)-1),10))*10^(COLUMNS($J:Z)-1)) -> 
C95: رصيد نهاية يوم | E95: =A74 -> 2023-03-04 | F95: =SUM(B74:B94)+F73-SUM(D74:D94)+F94-H95 -> 1746 | G95: =SUM(G74:G94) -> 0 | H95: =+I95+J95 -> 0 | I95: =COUNT(D74:D94) -> 0 | J95: =COUNT(B74:B94) -> 0 | S95: رصيد نهاية يوم | U95: =Q74 -> 1900-01-03 | V95: =SUM(R74:R94)+V73-SUM(T74:T94)+V94-X95 -> 2988 | W95: =SUM(W74:W94) -> 0 | X95: =+Y95+Z95 -> 0 | Y95: =COUNT(T74:T94) -> 0 | Z95: =COUNT(R74:R94) -> 0
A96: =+A74+1 -> 2023-03-05 | G96: =IF(OR(J96=1,J96=6),I96+4,IF(OR(J96=2,J96=7),I96+3,IF(OR(J96=3,J96=8),I96+2,IF(OR(J96=4,J96=9),I96+1,I96)))) -> 0 | H96: 0 | I96: 0 | J96: =IF(COLUMNS($J:J)>LEN($I96),"",INT(MOD($I96/10^(COLUMNS($J:J)-1),10))*10^(COLUMNS($J:J)-1)) -> 0 | K96: =IF(AND(A96=TODAY(),G117>0),1,"") ->  | Q96: =+Q74+1 -> 1900-01-04 | W96: =IF(OR(Z96=1,Z96=6),Y96+4,IF(OR(Z96=2,Z96=7),Y96+3,IF(OR(Z96=3,Z96=8),Y96+2,IF(OR(Z96=4,Z96=9),Y96+1,Y96)))) -> 0 | X96: =+T96+R96 -> 0 | Y96: =+X96*0.01 -> 0 | Z96: =IF(COLUMNS($J:Z)>LEN($I96),"",INT(MOD($I96/10^(COLUMNS($J:Z)-1),10))*10^(COLUMNS($J:Z)-1)) ->  | AA96: =IF(AND(Q96=TODAY(),W117>0),1,"") -> 
A97: =+A96 -> 2023-03-05 | G97: 0 | H97: 0 | I97: 0 | J97: =IF(COLUMNS($J:J)>LEN($I97),"",INT(MOD($I97/10^(COLUMNS($J:J)-1),10))*10^(COLUMNS($J:J)-1)) -> 0 | Q97: =+Q96 -> 1900-01-04 | W97: 0 | X97: 0 | Y97: 0 | Z97: =IF(COLUMNS($J:Z)>LEN($I97),"",INT(MOD($I97/10^(COLUMNS($J:Z)-1),10))*10^(COLUMNS($J:Z)-1)) -> 
A98: =+A97 -> 2023-03-05 | G98: 0 | H98: 0 | I98: 0 | J98: =IF(COLUMNS($J:J)>LEN($I98),"",INT(MOD($I98/10^(COLUMNS($J:J)-1),10))*10^(COLUMNS($J:J)-1)) -> 0 | Q98: =+Q97 -> 1900-01-04 | W98: 0 | X98: 0 | Y98: 0 | Z98: =IF(COLUMNS($J:Z)>LEN($I98),"",INT(MOD($I98/10^(COLUMNS($J:Z)-1),10))*10^(COLUMNS($J:Z)-1)) -> 
A99: 2023-03-05 | G99: 0 | H99: 0 | I99: 0 | J99: =IF(COLUMNS($J:J)>LEN($I99),"",INT(MOD($I99/10^(COLUMNS($J:J)-1),10))*10^(COLUMNS($J:J)-1)) -> 0 | Q99: 1900-01-04 | W99: 0 | X99: 0 | Y99: 0 | Z99: =IF(COLUMNS($J:Z)>LEN($I99),"",INT(MOD($I99/10^(COLUMNS($J:Z)-1),10))*10^(COLUMNS($J:Z)-1)) -> 
A100: 2023-03-05 | G100: 0 | H100: 0 | I100: 0 | J100: =IF(COLUMNS($J:J)>LEN($I100),"",INT(MOD($I100/10^(COLUMNS($J:J)-1),10))*10^(COLUMNS($J:J)-1)) -> 0 | Q100: 1900-01-04 | W100: 0 | X100: 0 | Y100: 0 | Z100: =IF(COLUMNS($J:Z)>LEN($I100),"",INT(MOD($I100/10^(COLUMNS($J:Z)-1),10))*10^(COLUMNS($J:Z)-1)) -> 
A101: 2023-03-05 | G101: 0 | H101: 0 | I101: 0 | J101: =IF(COLUMNS($J:J)>LEN($I101),"",INT(MOD($I101/10^(COLUMNS($J:J)-1),10))*10^(COLUMNS($J:J)-1)) -> 0 | Q101: 1900-01-04 | W101: 0 | X101: 0 | Y101: 0 | Z101: =IF(COLUMNS($J:Z)>LEN($I101),"",INT(MOD($I101/10^(COLUMNS($J:Z)-1),10))*10^(COLUMNS($J:Z)-1)) -> 
A102: 2023-03-05 | G102: 0 | H102: 0 | I102: 0 | J102: =IF(COLUMNS($J:J)>LEN($I102),"",INT(MOD($I102/10^(COLUMNS($J:J)-1),10))*10^(COLUMNS($J:J)-1)) -> 0 | Q102: 1900-01-04 | W102: 0 | X102: 0 | Y102: 0 | Z102: =IF(COLUMNS($J:Z)>LEN($I102),"",INT(MOD($I102/10^(COLUMNS($J:Z)-1),10))*10^(COLUMNS($J:Z)-1)) -> 
A103: 2023-03-05 | G103: 0 | H103: 0 | I103: 0 | J103: =IF(COLUMNS($J:J)>LEN($I103),"",INT(MOD($I103/10^(COLUMNS($J:J)-1),10))*10^(COLUMNS($J:J)-1)) -> 0 | Q103: 1900-01-04 | W103: 0 | X103: 0 | Y103: 0 | Z103: =IF(COLUMNS($J:Z)>LEN($I103),"",INT(MOD($I103/10^(COLUMNS($J:Z)-1),10))*10^(COLUMNS($J:Z)-1)) -> 
A104: 2023-03-05 | G104: 0 | H104: 0 | I104: 0 | J104: =IF(COLUMNS($J:J)>LEN($I104),"",INT(MOD($I104/10^(COLUMNS($J:J)-1),10))*10^(COLUMNS($J:J)-1)) -> 0 | Q104: 1900-01-04 | W104: 0 | X104: 0 | Y104: 0 | Z104: =IF(COLUMNS($J:Z)>LEN($I104),"",INT(MOD($I104/10^(COLUMNS($J:Z)-1),10))*10^(COLUMNS($J:Z)-1)) -> 
A105: 2023-03-05 | G105: 0 | H105: 0 | I105: 0 | J105: =IF(COLUMNS($J:J)>LEN($I105),"",INT(MOD($I105/10^(COLUMNS($J:J)-1),10))*10^(COLUMNS($J:J)-1)) -> 0 | Q105: 1900-01-04 | W105: 0 | X105: 0 | Y105: 0 | Z105: =IF(COLUMNS($J:Z)>LEN($I105),"",INT(MOD($I105/10^(COLUMNS($J:Z)-1),10))*10^(COLUMNS($J:Z)-1)) -> 
A106: 2023-03-05 | G106: 0 | H106: 0 | I106: 0 | J106: =IF(COLUMNS($J:J)>LEN($I106),"",INT(MOD($I106/10^(COLUMNS($J:J)-1),10))*10^(COLUMNS($J:J)-1)) -> 0 | Q106: 1900-01-04 | W106: 0 | X106: 0 | Y106: 0 | Z106: =IF(COLUMNS($J:Z)>LEN($I106),"",INT(MOD($I106/10^(COLUMNS($J:Z)-1),10))*10^(COLUMNS($J:Z)-1)) -> 
A107: 2023-03-05 | G107: 0 | H107: 0 | I107: 0 | J107: =IF(COLUMNS($J:J)>LEN($I107),"",INT(MOD($I107/10^(COLUMNS($J:J)-1),10))*10^(COLUMNS($J:J)-1)) -> 0 | Q107: 1900-01-04 | W107: 0 | X107: 0 | Y107: 0 | Z107: =IF(COLUMNS($J:Z)>LEN($I107),"",INT(MOD($I107/10^(COLUMNS($J:Z)-1),10))*10^(COLUMNS($J:Z)-1)) -> 
A108: 2023-03-05 | G108: 0 | H108: 0 | I108: 0 | J108: =IF(COLUMNS($J:J)>LEN($I108),"",INT(MOD($I108/10^(COLUMNS($J:J)-1),10))*10^(COLUMNS($J:J)-1)) -> 0 | Q108: 1900-01-04 | W108: 0 | X108: 0 | Y108: 0 | Z108: =IF(COLUMNS($J:Z)>LEN($I108),"",INT(MOD($I108/10^(COLUMNS($J:Z)-1),10))*10^(COLUMNS($J:Z)-1)) -> 
A109: 2023-03-05 | G109: 0 | H109: 0 | I109: 0 | J109: =IF(COLUMNS($J:J)>LEN($I109),"",INT(MOD($I109/10^(COLUMNS($J:J)-1),10))*10^(COLUMNS($J:J)-1)) -> 0 | Q109: 1900-01-04 | W109: 0 | X109: 0 | Y109: 0 | Z109: =IF(COLUMNS($J:Z)>LEN($I109),"",INT(MOD($I109/10^(COLUMNS($J:Z)-1),10))*10^(COLUMNS($J:Z)-1)) -> 
A110: 2023-03-05 | G110: 0 | H110: 0 | I110: 0 | J110: =IF(COLUMNS($J:J)>LEN($I110),"",INT(MOD($I110/10^(COLUMNS($J:J)-1),10))*10^(COLUMNS($J:J)-1)) -> 0 | Q110: 1900-01-04 | W110: 0 | X110: 0 | Y110: 0 | Z110: =IF(COLUMNS($J:Z)>LEN($I110),"",INT(MOD($I110/10^(COLUMNS($J:Z)-1),10))*10^(COLUMNS($J:Z)-1)) -> 
A111: 2023-03-05 | G111: 0 | H111: 0 | I111: 0 | J111: =IF(COLUMNS($J:J)>LEN($I111),"",INT(MOD($I111/10^(COLUMNS($J:J)-1),10))*10^(COLUMNS($J:J)-1)) -> 0 | Q111: 1900-01-04 | W111: 0 | X111: 0 | Y111: 0 | Z111: =IF(COLUMNS($J:Z)>LEN($I111),"",INT(MOD($I111/10^(COLUMNS($J:Z)-1),10))*10^(COLUMNS($J:Z)-1)) -> 
A112: 2023-03-05 | G112: 0 | H112: 0 | I112: 0 | J112: =IF(COLUMNS($J:J)>LEN($I112),"",INT(MOD($I112/10^(COLUMNS($J:J)-1),10))*10^(COLUMNS($J:J)-1)) -> 0 | Q112: 1900-01-04 | W112: 0 | X112: 0 | Y112: 0 | Z112: =IF(COLUMNS($J:Z)>LEN($I112),"",INT(MOD($I112/10^(COLUMNS($J:Z)-1),10))*10^(COLUMNS($J:Z)-1)) -> 
A113: 2023-03-05 | G113: 0 | H113: 0 | I113: 0 | J113: =IF(COLUMNS($J:J)>LEN($I113),"",INT(MOD($I113/10^(COLUMNS($J:J)-1),10))*10^(COLUMNS($J:J)-1)) -> 0 | Q113: 1900-01-04 | W113: 0 | X113: 0 | Y113: 0 | Z113: =IF(COLUMNS($J:Z)>LEN($I113),"",INT(MOD($I113/10^(COLUMNS($J:Z)-1),10))*10^(COLUMNS($J:Z)-1)) -> 
A114: 2023-03-05 | G114: 0 | H114: 0 | I114: 0 | J114: =IF(COLUMNS($J:J)>LEN($I114),"",INT(MOD($I114/10^(COLUMNS($J:J)-1),10))*10^(COLUMNS($J:J)-1)) -> 0 | Q114: 1900-01-04 | W114: 0 | X114: 0 | Y114: 0 | Z114: =IF(COLUMNS($J:Z)>LEN($I114),"",INT(MOD($I114/10^(COLUMNS($J:Z)-1),10))*10^(COLUMNS($J:Z)-1)) -> 
A115: 2023-03-05 | G115: 0 | H115: 0 | I115: 0 | J115: =IF(COLUMNS($J:J)>LEN($I115),"",INT(MOD($I115/10^(COLUMNS($J:J)-1),10))*10^(COLUMNS($J:J)-1)) -> 0 | Q115: 1900-01-04 | W115: 0 | X115: 0 | Y115: 0 | Z115: =IF(COLUMNS($J:Z)>LEN($I115),"",INT(MOD($I115/10^(COLUMNS($J:Z)-1),10))*10^(COLUMNS($J:Z)-1)) -> 
A116: 2023-03-05 | E116: شحن من الماكنة | G116: 0 | H116: 0 | I116: 0 | J116: =IF(COLUMNS($J:J)>LEN($I116),"",INT(MOD($I116/10^(COLUMNS($J:J)-1),10))*10^(COLUMNS($J:J)-1)) -> 0 | Q116: 1900-01-04 | U116: شحن من الماكنة | W116: 0 | X116: 0 | Y116: 0 | Z116: =IF(COLUMNS($J:Z)>LEN($I116),"",INT(MOD($I116/10^(COLUMNS($J:Z)-1),10))*10^(COLUMNS($J:Z)-1)) -> 
C117: رصيد نهاية يوم | E117: =A96 -> 2023-03-05 | F117: =SUM(B96:B116)+F95-SUM(D96:D116)+F116-H117 -> 1746 | G117: =SUM(G96:G116) -> 0 | H117: =+I117+J117 -> 0 | I117: =COUNT(D96:D116) -> 0 | J117: =COUNT(B96:B116) -> 0 | S117: رصيد نهاية يوم | U117: =Q96 -> 1900-01-04 | V117: =SUM(R96:R116)+V95-SUM(T96:T116)+V116-X117 -> 2988 | W117: =SUM(W96:W116) -> 0 | X117: =+Y117+Z117 -> 0 | Y117: =COUNT(T96:T116) -> 0 | Z117: =COUNT(R96:R116) -> 0
A118: =+A96+1 -> 2023-03-06 | G118: =IF(OR(J118=1,J118=6),I118+4,IF(OR(J118=2,J118=7),I118+3,IF(OR(J118=3,J118=8),I118+2,IF(OR(J118=4,J118=9),I118+1,I118)))) -> 0 | H118: 0 | I118: 0 | J118: =IF(COLUMNS($J:J)>LEN($I118),"",INT(MOD($I118/10^(COLUMNS($J:J)-1),10))*10^(COLUMNS($J:J)-1)) -> 0 | K118: =IF(AND(A118=TODAY(),G139>0),1,"") ->  | Q118: =+Q96+1 -> 1900-01-05 | W118: =IF(OR(Z118=1,Z118=6),Y118+4,IF(OR(Z118=2,Z118=7),Y118+3,IF(OR(Z118=3,Z118=8),Y118+2,IF(OR(Z118=4,Z118=9),Y118+1,Y118)))) -> 0 | X118: =+T118+R118 -> 0 | Y118: =+X118*0.01 -> 0 | Z118: =IF(COLUMNS($J:Z)>LEN($I118),"",INT(MOD($I118/10^(COLUMNS($J:Z)-1),10))*10^(COLUMNS($J:Z)-1)) ->  | AA118: =IF(AND(Q118=TODAY(),W139>0),1,"") -> 
A119: =+A118 -> 2023-03-06 | G119: 0 | H119: 0 | I119: 0 | J119: =IF(COLUMNS($J:J)>LEN($I119),"",INT(MOD($I119/10^(COLUMNS($J:J)-1),10))*10^(COLUMNS($J:J)-1)) -> 0 | Q119: =+Q118 -> 1900-01-05 | W119: 0 | X119: 0 | Y119: 0 | Z119: =IF(COLUMNS($J:Z)>LEN($I119),"",INT(MOD($I119/10^(COLUMNS($J:Z)-1),10))*10^(COLUMNS($J:Z)-1)) -> 
A120: =+A119 -> 2023-03-06 | G120: 0 | H120: 0 | I120: 0 | J120: =IF(COLUMNS($J:J)>LEN($I120),"",INT(MOD($I120/10^(COLUMNS($J:J)-1),10))*10^(COLUMNS($J:J)-1)) -> 0 | Q120: =+Q119 -> 1900-01-05 | W120: 0 | X120: 0 | Y120: 0 | Z120: =IF(COLUMNS($J:Z)>LEN($I120),"",INT(MOD($I120/10^(COLUMNS($J:Z)-1),10))*10^(COLUMNS($J:Z)-1)) -> 
A121: 2023-03-06 | G121: 0 | H121: 0 | I121: 0 | J121: =IF(COLUMNS($J:J)>LEN($I121),"",INT(MOD($I121/10^(COLUMNS($J:J)-1),10))*10^(COLUMNS($J:J)-1)) -> 0 | Q121: 1900-01-05 | W121: 0 | X121: 0 | Y121: 0 | Z121: =IF(COLUMNS($J:Z)>LEN($I121),"",INT(MOD($I121/10^(COLUMNS($J:Z)-1),10))*10^(COLUMNS($J:Z)-1)) -> 
A122: 2023-03-06 | G122: 0 | H122: 0 | I122: 0 | J122: =IF(COLUMNS($J:J)>LEN($I122),"",INT(MOD($I122/10^(COLUMNS($J:J)-1),10))*10^(COLUMNS($J:J)-1)) -> 0 | Q122: 1900-01-05 | W122: 0 | X122: 0 | Y122: 0 | Z122: =IF(COLUMNS($J:Z)>LEN($I122),"",INT(MOD($I122/10^(COLUMNS($J:Z)-1),10))*10^(COLUMNS($J:Z)-1)) -> 
A123: 2023-03-06 | G123: 0 | H123: 0 | I123: 0 | J123: =IF(COLUMNS($J:J)>LEN($I123),"",INT(MOD($I123/10^(COLUMNS($J:J)-1),10))*10^(COLUMNS($J:J)-1)) -> 0 | Q123: 1900-01-05 | W123: 0 | X123: 0 | Y123: 0 | Z123: =IF(COLUMNS($J:Z)>LEN($I123),"",INT(MOD($I123/10^(COLUMNS($J:Z)-1),10))*10^(COLUMNS($J:Z)-1)) -> 
A124: 2023-03-06 | G124: 0 | H124: 0 | I124: 0 | J124: =IF(COLUMNS($J:J)>LEN($I124),"",INT(MOD($I124/10^(COLUMNS($J:J)-1),10))*10^(COLUMNS($J:J)-1)) -> 0 | Q124: 1900-01-05 | W124: 0 | X124: 0 | Y124: 0 | Z124: =IF(COLUMNS($J:Z)>LEN($I124),"",INT(MOD($I124/10^(COLUMNS($J:Z)-1),10))*10^(COLUMNS($J:Z)-1)) -> 
A125: 2023-03-06 | G125: 0 | H125: 0 | I125: 0 | J125: =IF(COLUMNS($J:J)>LEN($I125),"",INT(MOD($I125/10^(COLUMNS($J:J)-1),10))*10^(COLUMNS($J:J)-1)) -> 0 | Q125: 1900-01-05 | W125: 0 | X125: 0 | Y125: 0 | Z125: =IF(COLUMNS($J:Z)>LEN($I125),"",INT(MOD($I125/10^(COLUMNS($J:Z)-1),10))*10^(COLUMNS($J:Z)-1)) -> 
A126: 2023-03-06 | G126: 0 | H126: 0 | I126: 0 | J126: =IF(COLUMNS($J:J)>LEN($I126),"",INT(MOD($I126/10^(COLUMNS($J:J)-1),10))*10^(COLUMNS($J:J)-1)) -> 0 | Q126: 1900-01-05 | W126: 0 | X126: 0 | Y126: 0 | Z126: =IF(COLUMNS($J:Z)>LEN($I126),"",INT(MOD($I126/10^(COLUMNS($J:Z)-1),10))*10^(COLUMNS($J:Z)-1)) -> 
A127: 2023-03-06 | G127: 0 | H127: 0 | I127: 0 | J127: =IF(COLUMNS($J:J)>LEN($I127),"",INT(MOD($I127/10^(COLUMNS($J:J)-1),10))*10^(COLUMNS($J:J)-1)) -> 0 | Q127: 1900-01-05 | W127: 0 | X127: 0 | Y127: 0 | Z127: =IF(COLUMNS($J:Z)>LEN($I127),"",INT(MOD($I127/10^(COLUMNS($J:Z)-1),10))*10^(COLUMNS($J:Z)-1)) -> 
A128: 2023-03-06 | G128: 0 | H128: 0 | I128: 0 | J128: =IF(COLUMNS($J:J)>LEN($I128),"",INT(MOD($I128/10^(COLUMNS($J:J)-1),10))*10^(COLUMNS($J:J)-1)) -> 0 | Q128: 1900-01-05 | W128: 0 | X128: 0 | Y128: 0 | Z128: =IF(COLUMNS($J:Z)>LEN($I128),"",INT(MOD($I128/10^(COLUMNS($J:Z)-1),10))*10^(COLUMNS($J:Z)-1)) -> 
A129: 2023-03-06 | G129: 0 | H129: 0 | I129: 0 | J129: =IF(COLUMNS($J:J)>LEN($I129),"",INT(MOD($I129/10^(COLUMNS($J:J)-1),10))*10^(COLUMNS($J:J)-1)) -> 0 | Q129: 1900-01-05 | W129: 0 | X129: 0 | Y129: 0 | Z129: =IF(COLUMNS($J:Z)>LEN($I129),"",INT(MOD($I129/10^(COLUMNS($J:Z)-1),10))*10^(COLUMNS($J:Z)-1)) -> 
A130: 2023-03-06 | G130: 0 | H130: 0 | I130: 0 | J130: =IF(COLUMNS($J:J)>LEN($I130),"",INT(MOD($I130/10^(COLUMNS($J:J)-1),10))*10^(COLUMNS($J:J)-1)) -> 0 | Q130: 1900-01-05 | W130: 0 | X130: 0 | Y130: 0 | Z130: =IF(COLUMNS($J:Z)>LEN($I130),"",INT(MOD($I130/10^(COLUMNS($J:Z)-1),10))*10^(COLUMNS($J:Z)-1)) -> 
A131: 2023-03-06 | G131: 0 | H131: 0 | I131: 0 | J131: =IF(COLUMNS($J:J)>LEN($I131),"",INT(MOD($I131/10^(COLUMNS($J:J)-1),10))*10^(COLUMNS($J:J)-1)) -> 0 | Q131: 1900-01-05 | W131: 0 | X131: 0 | Y131: 0 | Z131: =IF(COLUMNS($J:Z)>LEN($I131),"",INT(MOD($I131/10^(COLUMNS($J:Z)-1),10))*10^(COLUMNS($J:Z)-1)) -> 
A132: 2023-03-06 | G132: 0 | H132: 0 | I132: 0 | J132: =IF(COLUMNS($J:J)>LEN($I132),"",INT(MOD($I132/10^(COLUMNS($J:J)-1),10))*10^(COLUMNS($J:J)-1)) -> 0 | Q132: 1900-01-05 | W132: 0 | X132: 0 | Y132: 0 | Z132: =IF(COLUMNS($J:Z)>LEN($I132),"",INT(MOD($I132/10^(COLUMNS($J:Z)-1),10))*10^(COLUMNS($J:Z)-1)) -> 
A133: 2023-03-06 | G133: 0 | H133: 0 | I133: 0 | J133: =IF(COLUMNS($J:J)>LEN($I133),"",INT(MOD($I133/10^(COLUMNS($J:J)-1),10))*10^(COLUMNS($J:J)-1)) -> 0 | Q133: 1900-01-05 | W133: 0 | X133: 0 | Y133: 0 | Z133: =IF(COLUMNS($J:Z)>LEN($I133),"",INT(MOD($I133/10^(COLUMNS($J:Z)-1),10))*10^(COLUMNS($J:Z)-1)) -> 
A134: 2023-03-06 | G134: 0 | H134: 0 | I134: 0 | J134: =IF(COLUMNS($J:J)>LEN($I134),"",INT(MOD($I134/10^(COLUMNS($J:J)-1),10))*10^(COLUMNS($J:J)-1)) -> 0 | Q134: 1900-01-05 | W134: 0 | X134: 0 | Y134: 0 | Z134: =IF(COLUMNS($J:Z)>LEN($I134),"",INT(MOD($I134/10^(COLUMNS($J:Z)-1),10))*10^(COLUMNS($J:Z)-1)) -> 
A135: 2023-03-06 | G135: 0 | H135: 0 | I135: 0 | J135: =IF(COLUMNS($J:J)>LEN($I135),"",INT(MOD($I135/10^(COLUMNS($J:J)-1),10))*10^(COLUMNS($J:J)-1)) -> 0 | Q135: 1900-01-05 | W135: 0 | X135: 0 | Y135: 0 | Z135: =IF(COLUMNS($J:Z)>LEN($I135),"",INT(MOD($I135/10^(COLUMNS($J:Z)-1),10))*10^(COLUMNS($J:Z)-1)) -> 
A136: 2023-03-06 | G136: 0 | H136: 0 | I136: 0 | J136: =IF(COLUMNS($J:J)>LEN($I136),"",INT(MOD($I136/10^(COLUMNS($J:J)-1),10))*10^(COLUMNS($J:J)-1)) -> 0 | Q136: 1900-01-05 | W136: 0 | X136: 0 | Y136: 0 | Z136: =IF(COLUMNS($J:Z)>LEN($I136),"",INT(MOD($I136/10^(COLUMNS($J:Z)-1),10))*10^(COLUMNS($J:Z)-1)) -> 
A137: 2023-03-06 | G137: 0 | H137: 0 | I137: 0 | J137: =IF(COLUMNS($J:J)>LEN($I137),"",INT(MOD($I137/10^(COLUMNS($J:J)-1),10))*10^(COLUMNS($J:J)-1)) -> 0 | Q137: 1900-01-05 | W137: 0 | X137: 0 | Y137: 0 | Z137: =IF(COLUMNS($J:Z)>LEN($I137),"",INT(MOD($I137/10^(COLUMNS($J:Z)-1),10))*10^(COLUMNS($J:Z)-1)) -> 
A138: 2023-03-06 | E138: شحن من الماكنة | G138: 0 | H138: =+D138+B138 -> 0 | I138: =+H138*0.01 -> 0 | J138: =IF(COLUMNS($J:J)>LEN($I138),"",INT(MOD($I138/10^(COLUMNS($J:J)-1),10))*10^(COLUMNS($J:J)-1)) -> 0 | Q138: 1900-01-05 | U138: شحن من الماكنة | W138: 0 | X138: 0 | Y138: 0 | Z138: =IF(COLUMNS($J:Z)>LEN($I138),"",INT(MOD($I138/10^(COLUMNS($J:Z)-1),10))*10^(COLUMNS($J:Z)-1)) -> 
C139: رصيد نهاية يوم | E139: =A118 -> 2023-03-06 | F139: =SUM(B118:B138)+F117-SUM(D118:D138)+F138-H139 -> 1746 | G139: =SUM(G118:G138) -> 0 | H139: =+I139+J139 -> 0 | I139: =COUNT(D118:D138) -> 0 | J139: =COUNT(B118:B138) -> 0 | S139: رصيد نهاية يوم | U139: =Q118 -> 1900-01-05 | V139: =SUM(R118:R138)+V117-SUM(T118:T138)+V138-X139 -> 2988 | W139: =SUM(W118:W138) -> 0 | X139: =+Y139+Z139 -> 0 | Y139: =COUNT(T118:T138) -> 0 | Z139: =COUNT(R118:R138) -> 0
A140: =+A118+1 -> 2023-03-07 | G140: =IF(OR(J140=1,J140=6),I140+4,IF(OR(J140=2,J140=7),I140+3,IF(OR(J140=3,J140=8),I140+2,IF(OR(J140=4,J140=9),I140+1,I140)))) -> 0 | H140: 0 | I140: 0 | J140: =IF(COLUMNS($J:J)>LEN($I140),"",INT(MOD($I140/10^(COLUMNS($J:J)-1),10))*10^(COLUMNS($J:J)-1)) -> 0 | K140: =IF(AND(A140=TODAY(),G161>0),1,"") ->  | Q140: =+Q118+1 -> 1900-01-06 | W140: =IF(OR(Z140=1,Z140=6),Y140+4,IF(OR(Z140=2,Z140=7),Y140+3,IF(OR(Z140=3,Z140=8),Y140+2,IF(OR(Z140=4,Z140=9),Y140+1,Y140)))) -> 0 | X140: =+T140+R140 -> 0 | Y140: =+X140*0.01 -> 0 | Z140: =IF(COLUMNS($J:Z)>LEN($I140),"",INT(MOD($I140/10^(COLUMNS($J:Z)-1),10))*10^(COLUMNS($J:Z)-1)) ->  | AA140: =IF(AND(Q140=TODAY(),W161>0),1,"") -> 
A141: =+A140 -> 2023-03-07 | G141: 0 | H141: 0 | I141: 0 | J141: =IF(COLUMNS($J:J)>LEN($I141),"",INT(MOD($I141/10^(COLUMNS($J:J)-1),10))*10^(COLUMNS($J:J)-1)) -> 0 | Q141: =+Q140 -> 1900-01-06 | W141: 0 | X141: 0 | Y141: 0 | Z141: =IF(COLUMNS($J:Z)>LEN($I141),"",INT(MOD($I141/10^(COLUMNS($J:Z)-1),10))*10^(COLUMNS($J:Z)-1)) -> 
A142: =+A141 -> 2023-03-07 | G142: 0 | H142: 0 | I142: 0 | J142: =IF(COLUMNS($J:J)>LEN($I142),"",INT(MOD($I142/10^(COLUMNS($J:J)-1),10))*10^(COLUMNS($J:J)-1)) -> 0 | Q142: =+Q141 -> 1900-01-06 | W142: 0 | X142: 0 | Y142: 0 | Z142: =IF(COLUMNS($J:Z)>LEN($I142),"",INT(MOD($I142/10^(COLUMNS($J:Z)-1),10))*10^(COLUMNS($J:Z)-1)) -> 
A143: 2023-03-07 | G143: 0 | H143: 0 | I143: 0 | J143: =IF(COLUMNS($J:J)>LEN($I143),"",INT(MOD($I143/10^(COLUMNS($J:J)-1),10))*10^(COLUMNS($J:J)-1)) -> 0 | Q143: 1900-01-06 | W143: 0 | X143: 0 | Y143: 0 | Z143: =IF(COLUMNS($J:Z)>LEN($I143),"",INT(MOD($I143/10^(COLUMNS($J:Z)-1),10))*10^(COLUMNS($J:Z)-1)) -> 
A144: 2023-03-07 | G144: 0 | H144: 0 | I144: 0 | J144: =IF(COLUMNS($J:J)>LEN($I144),"",INT(MOD($I144/10^(COLUMNS($J:J)-1),10))*10^(COLUMNS($J:J)-1)) -> 0 | Q144: 1900-01-06 | W144: 0 | X144: 0 | Y144: 0 | Z144: =IF(COLUMNS($J:Z)>LEN($I144),"",INT(MOD($I144/10^(COLUMNS($J:Z)-1),10))*10^(COLUMNS($J:Z)-1)) -> 
A145: 2023-03-07 | G145: 0 | H145: 0 | I145: 0 | J145: =IF(COLUMNS($J:J)>LEN($I145),"",INT(MOD($I145/10^(COLUMNS($J:J)-1),10))*10^(COLUMNS($J:J)-1)) -> 0 | Q145: 1900-01-06 | W145: 0 | X145: 0 | Y145: 0 | Z145: =IF(COLUMNS($J:Z)>LEN($I145),"",INT(MOD($I145/10^(COLUMNS($J:Z)-1),10))*10^(COLUMNS($J:Z)-1)) -> 
A146: 2023-03-07 | G146: 0 | H146: 0 | I146: 0 | J146: =IF(COLUMNS($J:J)>LEN($I146),"",INT(MOD($I146/10^(COLUMNS($J:J)-1),10))*10^(COLUMNS($J:J)-1)) -> 0 | Q146: 1900-01-06 | W146: 0 | X146: 0 | Y146: 0 | Z146: =IF(COLUMNS($J:Z)>LEN($I146),"",INT(MOD($I146/10^(COLUMNS($J:Z)-1),10))*10^(COLUMNS($J:Z)-1)) -> 
A147: 2023-03-07 | G147: 0 | H147: 0 | I147: 0 | J147: =IF(COLUMNS($J:J)>LEN($I147),"",INT(MOD($I147/10^(COLUMNS($J:J)-1),10))*10^(COLUMNS($J:J)-1)) -> 0 | Q147: 1900-01-06 | W147: 0 | X147: 0 | Y147: 0 | Z147: =IF(COLUMNS($J:Z)>LEN($I147),"",INT(MOD($I147/10^(COLUMNS($J:Z)-1),10))*10^(COLUMNS($J:Z)-1)) -> 
A148: 2023-03-07 | G148: 0 | H148: 0 | I148: 0 | J148: =IF(COLUMNS($J:J)>LEN($I148),"",INT(MOD($I148/10^(COLUMNS($J:J)-1),10))*10^(COLUMNS($J:J)-1)) -> 0 | Q148: 1900-01-06 | W148: 0 | X148: 0 | Y148: 0 | Z148: =IF(COLUMNS($J:Z)>LEN($I148),"",INT(MOD($I148/10^(COLUMNS($J:Z)-1),10))*10^(COLUMNS($J:Z)-1)) -> 
A149: 2023-03-07 | G149: 0 | H149: 0 | I149: 0 | J149: =IF(COLUMNS($J:J)>LEN($I149),"",INT(MOD($I149/10^(COLUMNS($J:J)-1),10))*10^(COLUMNS($J:J)-1)) -> 0 | Q149: 1900-01-06 | W149: 0 | X149: 0 | Y149: 0 | Z149: =IF(COLUMNS($J:Z)>LEN($I149),"",INT(MOD($I149/10^(COLUMNS($J:Z)-1),10))*10^(COLUMNS($J:Z)-1)) -> 
A150: 2023-03-07 | G150: 0 | H150: 0 | I150: 0 | J150: =IF(COLUMNS($J:J)>LEN($I150),"",INT(MOD($I150/10^(COLUMNS($J:J)-1),10))*10^(COLUMNS($J:J)-1)) -> 0 | Q150: 1900-01-06 | W150: 0 | X150: 0 | Y150: 0 | Z150: =IF(COLUMNS($J:Z)>LEN($I150),"",INT(MOD($I150/10^(COLUMNS($J:Z)-1),10))*10^(COLUMNS($J:Z)-1)) -> 
A151: 2023-03-07 | G151: 0 | H151: 0 | I151: 0 | J151: =IF(COLUMNS($J:J)>LEN($I151),"",INT(MOD($I151/10^(COLUMNS($J:J)-1),10))*10^(COLUMNS($J:J)-1)) -> 0 | Q151: 1900-01-06 | W151: 0 | X151: 0 | Y151: 0 | Z151: =IF(COLUMNS($J:Z)>LEN($I151),"",INT(MOD($I151/10^(COLUMNS($J:Z)-1),10))*10^(COLUMNS($J:Z)-1)) -> 
A152: 2023-03-07 | G152: 0 | H152: 0 | I152: 0 | J152: =IF(COLUMNS($J:J)>LEN($I152),"",INT(MOD($I152/10^(COLUMNS($J:J)-1),10))*10^(COLUMNS($J:J)-1)) -> 0 | Q152: 1900-01-06 | W152: 0 | X152: 0 | Y152: 0 | Z152: =IF(COLUMNS($J:Z)>LEN($I152),"",INT(MOD($I152/10^(COLUMNS($J:Z)-1),10))*10^(COLUMNS($J:Z)-1)) -> 
A153: 2023-03-07 | G153: 0 | H153: 0 | I153: 0 | J153: =IF(COLUMNS($J:J)>LEN($I153),"",INT(MOD($I153/10^(COLUMNS($J:J)-1),10))*10^(COLUMNS($J:J)-1)) -> 0 | Q153: 1900-01-06 | W153: 0 | X153: 0 | Y153: 0 | Z153: =IF(COLUMNS($J:Z)>LEN($I153),"",INT(MOD($I153/10^(COLUMNS($J:Z)-1),10))*10^(COLUMNS($J:Z)-1)) -> 
A154: 2023-03-07 | G154: 0 | H154: 0 | I154: 0 | J154: =IF(COLUMNS($J:J)>LEN($I154),"",INT(MOD($I154/10^(COLUMNS($J:J)-1),10))*10^(COLUMNS($J:J)-1)) -> 0 | Q154: 1900-01-06 | W154: 0 | X154: 0 | Y154: 0 | Z154: =IF(COLUMNS($J:Z)>LEN($I154),"",INT(MOD($I154/10^(COLUMNS($J:Z)-1),10))*10^(COLUMNS($J:Z)-1)) -> 
A155: 2023-03-07 | G155: 0 | H155: 0 | I155: 0 | J155: =IF(COLUMNS($J:J)>LEN($I155),"",INT(MOD($I155/10^(COLUMNS($J:J)-1),10))*10^(COLUMNS($J:J)-1)) -> 0 | Q155: 1900-01-06 | W155: 0 | X155: 0 | Y155: 0 | Z155: =IF(COLUMNS($J:Z)>LEN($I155),"",INT(MOD($I155/10^(COLUMNS($J:Z)-1),10))*10^(COLUMNS($J:Z)-1)) -> 
A156: 2023-03-07 | G156: 0 | H156: 0 | I156: 0 | J156: =IF(COLUMNS($J:J)>LEN($I156),"",INT(MOD($I156/10^(COLUMNS($J:J)-1),10))*10^(COLUMNS($J:J)-1)) -> 0 | Q156: 1900-01-06 | W156: 0 | X156: 0 | Y156: 0 | Z156: =IF(COLUMNS($J:Z)>LEN($I156),"",INT(MOD($I156/10^(COLUMNS($J:Z)-1),10))*10^(COLUMNS($J:Z)-1)) -> 
A157: 2023-03-07 | G157: 0 | H157: 0 | I157: 0 | J157: =IF(COLUMNS($J:J)>LEN($I157),"",INT(MOD($I157/10^(COLUMNS($J:J)-1),10))*10^(COLUMNS($J:J)-1)) -> 0 | Q157: 1900-01-06 | W157: 0 | X157: 0 | Y157: 0 | Z157: =IF(COLUMNS($J:Z)>LEN($I157),"",INT(MOD($I157/10^(COLUMNS($J:Z)-1),10))*10^(COLUMNS($J:Z)-1)) -> 
A158: 2023-03-07 | G158: 0 | H158: 0 | I158: 0 | J158: =IF(COLUMNS($J:J)>LEN($I158),"",INT(MOD($I158/10^(COLUMNS($J:J)-1),10))*10^(COLUMNS($J:J)-1)) -> 0 | Q158: 1900-01-06 | W158: 0 | X158: 0 | Y158: 0 | Z158: =IF(COLUMNS($J:Z)>LEN($I158),"",INT(MOD($I158/10^(COLUMNS($J:Z)-1),10))*10^(COLUMNS($J:Z)-1)) -> 
A159: 2023-03-07 | G159: 0 | H159: 0 | I159: 0 | J159: =IF(COLUMNS($J:J)>LEN($I159),"",INT(MOD($I159/10^(COLUMNS($J:J)-1),10))*10^(COLUMNS($J:J)-1)) -> 0 | Q159: 1900-01-06 | W159: 0 | X159: 0 | Y159: 0 | Z159: =IF(COLUMNS($J:Z)>LEN($I159),"",INT(MOD($I159/10^(COLUMNS($J:Z)-1),10))*10^(COLUMNS($J:Z)-1)) -> 
A160: 2023-03-07 | E160: شحن من الماكنة | G160: 0 | H160: 0 | I160: 0 | J160: =IF(COLUMNS($J:J)>LEN($I160),"",INT(MOD($I160/10^(COLUMNS($J:J)-1),10))*10^(COLUMNS($J:J)-1)) -> 0 | Q160: 1900-01-06 | U160: شحن من الماكنة | W160: 0 | X160: 0 | Y160: 0 | Z160: =IF(COLUMNS($J:Z)>LEN($I160),"",INT(MOD($I160/10^(COLUMNS($J:Z)-1),10))*10^(COLUMNS($J:Z)-1)) -> 
C161: رصيد نهاية يوم | E161: =A140 -> 2023-03-07 | F161: =SUM(B140:B160)+F139-SUM(D140:D160)+F160-H161 -> 1746 | G161: =SUM(G140:G160) -> 0 | H161: =+I161+J161 -> 0 | I161: =COUNT(D140:D160) -> 0 | J161: =COUNT(B140:B160) -> 0 | S161: رصيد نهاية يوم | U161: =Q140 -> 1900-01-06 | V161: =SUM(R140:R160)+V139-SUM(T140:T160)+V160-X161 -> 2988 | W161: =SUM(W140:W160) -> 0 | X161: =+Y161+Z161 -> 0 | Y161: =COUNT(T140:T160) -> 0 | Z161: =COUNT(R140:R160) -> 0
A162: =+A140+1 -> 2023-03-08 | G162: =IF(OR(J162=1,J162=6),I162+4,IF(OR(J162=2,J162=7),I162+3,IF(OR(J162=3,J162=8),I162+2,IF(OR(J162=4,J162=9),I162+1,I162)))) -> 0 | H162: 0 | I162: 0 | J162: =IF(COLUMNS($J:J)>LEN($I162),"",INT(MOD($I162/10^(COLUMNS($J:J)-1),10))*10^(COLUMNS($J:J)-1)) -> 0 | K162: =IF(AND(A162=TODAY(),G183>0),1,"") ->  | Q162: =+Q140+1 -> 1900-01-07 | W162: =IF(OR(Z162=1,Z162=6),Y162+4,IF(OR(Z162=2,Z162=7),Y162+3,IF(OR(Z162=3,Z162=8),Y162+2,IF(OR(Z162=4,Z162=9),Y162+1,Y162)))) -> 0 | X162: =+T162+R162 -> 0 | Y162: =+X162*0.01 -> 0 | Z162: =IF(COLUMNS($J:Z)>LEN($I162),"",INT(MOD($I162/10^(COLUMNS($J:Z)-1),10))*10^(COLUMNS($J:Z)-1)) ->  | AA162: =IF(AND(Q162=TODAY(),W183>0),1,"") -> 
A163: =+A162 -> 2023-03-08 | G163: 0 | H163: 0 | I163: 0 | J163: =IF(COLUMNS($J:J)>LEN($I163),"",INT(MOD($I163/10^(COLUMNS($J:J)-1),10))*10^(COLUMNS($J:J)-1)) -> 0 | Q163: =+Q162 -> 1900-01-07 | W163: 0 | X163: 0 | Y163: 0 | Z163: =IF(COLUMNS($J:Z)>LEN($I163),"",INT(MOD($I163/10^(COLUMNS($J:Z)-1),10))*10^(COLUMNS($J:Z)-1)) -> 
A164: =+A163 -> 2023-03-08 | G164: 0 | H164: 0 | I164: 0 | J164: =IF(COLUMNS($J:J)>LEN($I164),"",INT(MOD($I164/10^(COLUMNS($J:J)-1),10))*10^(COLUMNS($J:J)-1)) -> 0 | Q164: =+Q163 -> 1900-01-07 | W164: 0 | X164: 0 | Y164: 0 | Z164: =IF(COLUMNS($J:Z)>LEN($I164),"",INT(MOD($I164/10^(COLUMNS($J:Z)-1),10))*10^(COLUMNS($J:Z)-1)) -> 
A165: 2023-03-08 | G165: 0 | H165: 0 | I165: 0 | J165: =IF(COLUMNS($J:J)>LEN($I165),"",INT(MOD($I165/10^(COLUMNS($J:J)-1),10))*10^(COLUMNS($J:J)-1)) -> 0 | Q165: 1900-01-07 | W165: 0 | X165: 0 | Y165: 0 | Z165: =IF(COLUMNS($J:Z)>LEN($I165),"",INT(MOD($I165/10^(COLUMNS($J:Z)-1),10))*10^(COLUMNS($J:Z)-1)) -> 
A166: 2023-03-08 | G166: 0 | H166: 0 | I166: 0 | J166: =IF(COLUMNS($J:J)>LEN($I166),"",INT(MOD($I166/10^(COLUMNS($J:J)-1),10))*10^(COLUMNS($J:J)-1)) -> 0 | Q166: 1900-01-07 | W166: 0 | X166: 0 | Y166: 0 | Z166: =IF(COLUMNS($J:Z)>LEN($I166),"",INT(MOD($I166/10^(COLUMNS($J:Z)-1),10))*10^(COLUMNS($J:Z)-1)) -> 
A167: 2023-03-08 | G167: 0 | H167: 0 | I167: 0 | J167: =IF(COLUMNS($J:J)>LEN($I167),"",INT(MOD($I167/10^(COLUMNS($J:J)-1),10))*10^(COLUMNS($J:J)-1)) -> 0 | Q167: 1900-01-07 | W167: 0 | X167: 0 | Y167: 0 | Z167: =IF(COLUMNS($J:Z)>LEN($I167),"",INT(MOD($I167/10^(COLUMNS($J:Z)-1),10))*10^(COLUMNS($J:Z)-1)) -> 
A168: 2023-03-08 | G168: 0 | H168: 0 | I168: 0 | J168: =IF(COLUMNS($J:J)>LEN($I168),"",INT(MOD($I168/10^(COLUMNS($J:J)-1),10))*10^(COLUMNS($J:J)-1)) -> 0 | Q168: 1900-01-07 | W168: 0 | X168: 0 | Y168: 0 | Z168: =IF(COLUMNS($J:Z)>LEN($I168),"",INT(MOD($I168/10^(COLUMNS($J:Z)-1),10))*10^(COLUMNS($J:Z)-1)) -> 
A169: 2023-03-08 | G169: 0 | H169: 0 | I169: 0 | J169: =IF(COLUMNS($J:J)>LEN($I169),"",INT(MOD($I169/10^(COLUMNS($J:J)-1),10))*10^(COLUMNS($J:J)-1)) -> 0 | Q169: 1900-01-07 | W169: 0 | X169: 0 | Y169: 0 | Z169: =IF(COLUMNS($J:Z)>LEN($I169),"",INT(MOD($I169/10^(COLUMNS($J:Z)-1),10))*10^(COLUMNS($J:Z)-1)) -> 
A170: 2023-03-08 | G170: 0 | H170: 0 | I170: 0 | J170: =IF(COLUMNS($J:J)>LEN($I170),"",INT(MOD($I170/10^(COLUMNS($J:J)-1),10))*10^(COLUMNS($J:J)-1)) -> 0 | Q170: 1900-01-07 | W170: 0 | X170: 0 | Y170: 0 | Z170: =IF(COLUMNS($J:Z)>LEN($I170),"",INT(MOD($I170/10^(COLUMNS($J:Z)-1),10))*10^(COLUMNS($J:Z)-1)) -> 
A171: 2023-03-08 | G171: 0 | H171: 0 | I171: 0 | J171: =IF(COLUMNS($J:J)>LEN($I171),"",INT(MOD($I171/10^(COLUMNS($J:J)-1),10))*10^(COLUMNS($J:J)-1)) -> 0 | Q171: 1900-01-07 | W171: 0 | X171: 0 | Y171: 0 | Z171: =IF(COLUMNS($J:Z)>LEN($I171),"",INT(MOD($I171/10^(COLUMNS($J:Z)-1),10))*10^(COLUMNS($J:Z)-1)) -> 
A172: 2023-03-08 | G172: 0 | H172: 0 | I172: 0 | J172: =IF(COLUMNS($J:J)>LEN($I172),"",INT(MOD($I172/10^(COLUMNS($J:J)-1),10))*10^(COLUMNS($J:J)-1)) -> 0 | Q172: 1900-01-07 | W172: 0 | X172: 0 | Y172: 0 | Z172: =IF(COLUMNS($J:Z)>LEN($I172),"",INT(MOD($I172/10^(COLUMNS($J:Z)-1),10))*10^(COLUMNS($J:Z)-1)) -> 
A173: 2023-03-08 | G173: 0 | H173: 0 | I173: 0 | J173: =IF(COLUMNS($J:J)>LEN($I173),"",INT(MOD($I173/10^(COLUMNS($J:J)-1),10))*10^(COLUMNS($J:J)-1)) -> 0 | Q173: 1900-01-07 | W173: 0 | X173: 0 | Y173: 0 | Z173: =IF(COLUMNS($J:Z)>LEN($I173),"",INT(MOD($I173/10^(COLUMNS($J:Z)-1),10))*10^(COLUMNS($J:Z)-1)) -> 
A174: 2023-03-08 | G174: 0 | H174: 0 | I174: 0 | J174: =IF(COLUMNS($J:J)>LEN($I174),"",INT(MOD($I174/10^(COLUMNS($J:J)-1),10))*10^(COLUMNS($J:J)-1)) -> 0 | Q174: 1900-01-07 | W174: 0 | X174: 0 | Y174: 0 | Z174: =IF(COLUMNS($J:Z)>LEN($I174),"",INT(MOD($I174/10^(COLUMNS($J:Z)-1),10))*10^(COLUMNS($J:Z)-1)) -> 
A175: 2023-03-08 | G175: 0 | H175: 0 | I175: 0 | J175: =IF(COLUMNS($J:J)>LEN($I175),"",INT(MOD($I175/10^(COLUMNS($J:J)-1),10))*10^(COLUMNS($J:J)-1)) -> 0 | Q175: 1900-01-07 | W175: 0 | X175: 0 | Y175: 0 | Z175: =IF(COLUMNS($J:Z)>LEN($I175),"",INT(MOD($I175/10^(COLUMNS($J:Z)-1),10))*10^(COLUMNS($J:Z)-1)) -> 
A176: 2023-03-08 | G176: 0 | H176: 0 | I176: 0 | J176: =IF(COLUMNS($J:J)>LEN($I176),"",INT(MOD($I176/10^(COLUMNS($J:J)-1),10))*10^(COLUMNS($J:J)-1)) -> 0 | Q176: 1900-01-07 | W176: 0 | X176: 0 | Y176: 0 | Z176: =IF(COLUMNS($J:Z)>LEN($I176),"",INT(MOD($I176/10^(COLUMNS($J:Z)-1),10))*10^(COLUMNS($J:Z)-1)) -> 
A177: 2023-03-08 | G177: 0 | H177: 0 | I177: 0 | J177: =IF(COLUMNS($J:J)>LEN($I177),"",INT(MOD($I177/10^(COLUMNS($J:J)-1),10))*10^(COLUMNS($J:J)-1)) -> 0 | Q177: 1900-01-07 | W177: 0 | X177: 0 | Y177: 0 | Z177: =IF(COLUMNS($J:Z)>LEN($I177),"",INT(MOD($I177/10^(COLUMNS($J:Z)-1),10))*10^(COLUMNS($J:Z)-1)) -> 
A178: 2023-03-08 | G178: 0 | H178: 0 | I178: 0 | J178: =IF(COLUMNS($J:J)>LEN($I178),"",INT(MOD($I178/10^(COLUMNS($J:J)-1),10))*10^(COLUMNS($J:J)-1)) -> 0 | Q178: 1900-01-07 | W178: 0 | X178: 0 | Y178: 0 | Z178: =IF(COLUMNS($J:Z)>LEN($I178),"",INT(MOD($I178/10^(COLUMNS($J:Z)-1),10))*10^(COLUMNS($J:Z)-1)) -> 
A179: 2023-03-08 | G179: 0 | H179: 0 | I179: 0 | J179: =IF(COLUMNS($J:J)>LEN($I179),"",INT(MOD($I179/10^(COLUMNS($J:J)-1),10))*10^(COLUMNS($J:J)-1)) -> 0 | Q179: 1900-01-07 | W179: 0 | X179: 0 | Y179: 0 | Z179: =IF(COLUMNS($J:Z)>LEN($I179),"",INT(MOD($I179/10^(COLUMNS($J:Z)-1),10))*10^(COLUMNS($J:Z)-1)) -> 
A180: 2023-03-08 | G180: 0 | H180: 0 | I180: 0 | J180: =IF(COLUMNS($J:J)>LEN($I180),"",INT(MOD($I180/10^(COLUMNS($J:J)-1),10))*10^(COLUMNS($J:J)-1)) -> 0 | Q180: 1900-01-07 | W180: 0 | X180: 0 | Y180: 0 | Z180: =IF(COLUMNS($J:Z)>LEN($I180),"",INT(MOD($I180/10^(COLUMNS($J:Z)-1),10))*10^(COLUMNS($J:Z)-1)) -> 
A181: 2023-03-08 | G181: 0 | H181: 0 | I181: 0 | J181: =IF(COLUMNS($J:J)>LEN($I181),"",INT(MOD($I181/10^(COLUMNS($J:J)-1),10))*10^(COLUMNS($J:J)-1)) -> 0 | Q181: 1900-01-07 | W181: 0 | X181: 0 | Y181: 0 | Z181: =IF(COLUMNS($J:Z)>LEN($I181),"",INT(MOD($I181/10^(COLUMNS($J:Z)-1),10))*10^(COLUMNS($J:Z)-1)) -> 
A182: 2023-03-08 | E182: شحن من الماكنة | G182: 0 | H182: 0 | I182: 0 | J182: =IF(COLUMNS($J:J)>LEN($I182),"",INT(MOD($I182/10^(COLUMNS($J:J)-1),10))*10^(COLUMNS($J:J)-1)) -> 0 | Q182: 1900-01-07 | U182: شحن من الماكنة | W182: 0 | X182: 0 | Y182: 0 | Z182: =IF(COLUMNS($J:Z)>LEN($I182),"",INT(MOD($I182/10^(COLUMNS($J:Z)-1),10))*10^(COLUMNS($J:Z)-1)) -> 
C183: رصيد نهاية يوم | E183: =A162 -> 2023-03-08 | F183: =SUM(B162:B182)+F161-SUM(D162:D182)+F182-H183 -> 1746 | G183: =SUM(G162:G182) -> 0 | H183: =+I183+J183 -> 0 | I183: =COUNT(D162:D182) -> 0 | J183: =COUNT(B162:B182) -> 0 | S183: رصيد نهاية يوم | U183: =Q162 -> 1900-01-07 | V183: =SUM(R162:R182)+V161-SUM(T162:T182)+V182-X183 -> 2988 | W183: =SUM(W162:W182) -> 0 | X183: =+Y183+Z183 -> 0 | Y183: =COUNT(T162:T182) -> 0 | Z183: =COUNT(R162:R182) -> 0
A184: =+A162+1 -> 2023-03-09 | G184: =IF(OR(J184=1,J184=6),I184+4,IF(OR(J184=2,J184=7),I184+3,IF(OR(J184=3,J184=8),I184+2,IF(OR(J184=4,J184=9),I184+1,I184)))) -> 0 | H184: 0 | I184: 0 | J184: =IF(COLUMNS($J:J)>LEN($I184),"",INT(MOD($I184/10^(COLUMNS($J:J)-1),10))*10^(COLUMNS($J:J)-1)) -> 0 | K184: =IF(AND(A184=TODAY(),G205>0),1,"") ->  | Q184: =+Q162+1 -> 1900-01-08 | W184: =IF(OR(Z184=1,Z184=6),Y184+4,IF(OR(Z184=2,Z184=7),Y184+3,IF(OR(Z184=3,Z184=8),Y184+2,IF(OR(Z184=4,Z184=9),Y184+1,Y184)))) -> 0 | X184: =+T184+R184 -> 0 | Y184: =+X184*0.01 -> 0 | Z184: =IF(COLUMNS($J:Z)>LEN($I184),"",INT(MOD($I184/10^(COLUMNS($J:Z)-1),10))*10^(COLUMNS($J:Z)-1)) ->  | AA184: =IF(AND(Q184=TODAY(),W205>0),1,"") -> 
A185: =+A184 -> 2023-03-09 | G185: 0 | H185: 0 | I185: 0 | J185: =IF(COLUMNS($J:J)>LEN($I185),"",INT(MOD($I185/10^(COLUMNS($J:J)-1),10))*10^(COLUMNS($J:J)-1)) -> 0 | Q185: =+Q184 -> 1900-01-08 | W185: 0 | X185: 0 | Y185: 0 | Z185: =IF(COLUMNS($J:Z)>LEN($I185),"",INT(MOD($I185/10^(COLUMNS($J:Z)-1),10))*10^(COLUMNS($J:Z)-1)) -> 
A186: =+A185 -> 2023-03-09 | G186: 0 | H186: 0 | I186: 0 | J186: =IF(COLUMNS($J:J)>LEN($I186),"",INT(MOD($I186/10^(COLUMNS($J:J)-1),10))*10^(COLUMNS($J:J)-1)) -> 0 | Q186: =+Q185 -> 1900-01-08 | W186: 0 | X186: 0 | Y186: 0 | Z186: =IF(COLUMNS($J:Z)>LEN($I186),"",INT(MOD($I186/10^(COLUMNS($J:Z)-1),10))*10^(COLUMNS($J:Z)-1)) -> 
A187: 2023-03-09 | G187: 0 | H187: 0 | I187: 0 | J187: =IF(COLUMNS($J:J)>LEN($I187),"",INT(MOD($I187/10^(COLUMNS($J:J)-1),10))*10^(COLUMNS($J:J)-1)) -> 0 | Q187: 1900-01-08 | W187: 0 | X187: 0 | Y187: 0 | Z187: =IF(COLUMNS($J:Z)>LEN($I187),"",INT(MOD($I187/10^(COLUMNS($J:Z)-1),10))*10^(COLUMNS($J:Z)-1)) -> 
A188: 2023-03-09 | G188: 0 | H188: 0 | I188: 0 | J188: =IF(COLUMNS($J:J)>LEN($I188),"",INT(MOD($I188/10^(COLUMNS($J:J)-1),10))*10^(COLUMNS($J:J)-1)) -> 0 | Q188: 1900-01-08 | W188: 0 | X188: 0 | Y188: 0 | Z188: =IF(COLUMNS($J:Z)>LEN($I188),"",INT(MOD($I188/10^(COLUMNS($J:Z)-1),10))*10^(COLUMNS($J:Z)-1)) -> 
A189: 2023-03-09 | G189: 0 | H189: 0 | I189: 0 | J189: =IF(COLUMNS($J:J)>LEN($I189),"",INT(MOD($I189/10^(COLUMNS($J:J)-1),10))*10^(COLUMNS($J:J)-1)) -> 0 | Q189: 1900-01-08 | W189: 0 | X189: 0 | Y189: 0 | Z189: =IF(COLUMNS($J:Z)>LEN($I189),"",INT(MOD($I189/10^(COLUMNS($J:Z)-1),10))*10^(COLUMNS($J:Z)-1)) -> 
A190: 2023-03-09 | G190: 0 | H190: 0 | I190: 0 | J190: =IF(COLUMNS($J:J)>LEN($I190),"",INT(MOD($I190/10^(COLUMNS($J:J)-1),10))*10^(COLUMNS($J:J)-1)) -> 0 | Q190: 1900-01-08 | W190: 0 | X190: 0 | Y190: 0 | Z190: =IF(COLUMNS($J:Z)>LEN($I190),"",INT(MOD($I190/10^(COLUMNS($J:Z)-1),10))*10^(COLUMNS($J:Z)-1)) -> 
A191: 2023-03-09 | G191: 0 | H191: 0 | I191: 0 | J191: =IF(COLUMNS($J:J)>LEN($I191),"",INT(MOD($I191/10^(COLUMNS($J:J)-1),10))*10^(COLUMNS($J:J)-1)) -> 0 | Q191: 1900-01-08 | W191: 0 | X191: 0 | Y191: 0 | Z191: =IF(COLUMNS($J:Z)>LEN($I191),"",INT(MOD($I191/10^(COLUMNS($J:Z)-1),10))*10^(COLUMNS($J:Z)-1)) -> 
A192: 2023-03-09 | G192: 0 | H192: 0 | I192: 0 | J192: =IF(COLUMNS($J:J)>LEN($I192),"",INT(MOD($I192/10^(COLUMNS($J:J)-1),10))*10^(COLUMNS($J:J)-1)) -> 0 | Q192: 1900-01-08 | W192: 0 | X192: 0 | Y192: 0 | Z192: =IF(COLUMNS($J:Z)>LEN($I192),"",INT(MOD($I192/10^(COLUMNS($J:Z)-1),10))*10^(COLUMNS($J:Z)-1)) -> 
A193: 2023-03-09 | G193: 0 | H193: 0 | I193: 0 | J193: =IF(COLUMNS($J:J)>LEN($I193),"",INT(MOD($I193/10^(COLUMNS($J:J)-1),10))*10^(COLUMNS($J:J)-1)) -> 0 | Q193: 1900-01-08 | W193: 0 | X193: 0 | Y193: 0 | Z193: =IF(COLUMNS($J:Z)>LEN($I193),"",INT(MOD($I193/10^(COLUMNS($J:Z)-1),10))*10^(COLUMNS($J:Z)-1)) -> 
A194: 2023-03-09 | G194: 0 | H194: 0 | I194: 0 | J194: =IF(COLUMNS($J:J)>LEN($I194),"",INT(MOD($I194/10^(COLUMNS($J:J)-1),10))*10^(COLUMNS($J:J)-1)) -> 0 | Q194: 1900-01-08 | W194: 0 | X194: 0 | Y194: 0 | Z194: =IF(COLUMNS($J:Z)>LEN($I194),"",INT(MOD($I194/10^(COLUMNS($J:Z)-1),10))*10^(COLUMNS($J:Z)-1)) -> 
A195: 2023-03-09 | G195: 0 | H195: 0 | I195: 0 | J195: =IF(COLUMNS($J:J)>LEN($I195),"",INT(MOD($I195/10^(COLUMNS($J:J)-1),10))*10^(COLUMNS($J:J)-1)) -> 0 | Q195: 1900-01-08 | W195: 0 | X195: 0 | Y195: 0 | Z195: =IF(COLUMNS($J:Z)>LEN($I195),"",INT(MOD($I195/10^(COLUMNS($J:Z)-1),10))*10^(COLUMNS($J:Z)-1)) -> 
A196: 2023-03-09 | G196: 0 | H196: 0 | I196: 0 | J196: =IF(COLUMNS($J:J)>LEN($I196),"",INT(MOD($I196/10^(COLUMNS($J:J)-1),10))*10^(COLUMNS($J:J)-1)) -> 0 | Q196: 1900-01-08 | W196: 0 | X196: 0 | Y196: 0 | Z196: =IF(COLUMNS($J:Z)>LEN($I196),"",INT(MOD($I196/10^(COLUMNS($J:Z)-1),10))*10^(COLUMNS($J:Z)-1)) -> 
A197: 2023-03-09 | G197: 0 | H197: 0 | I197: 0 | J197: =IF(COLUMNS($J:J)>LEN($I197),"",INT(MOD($I197/10^(COLUMNS($J:J)-1),10))*10^(COLUMNS($J:J)-1)) -> 0 | Q197: 1900-01-08 | W197: 0 | X197: 0 | Y197: 0 | Z197: =IF(COLUMNS($J:Z)>LEN($I197),"",INT(MOD($I197/10^(COLUMNS($J:Z)-1),10))*10^(COLUMNS($J:Z)-1)) -> 
A198: 2023-03-09 | G198: 0 | H198: 0 | I198: 0 | J198: =IF(COLUMNS($J:J)>LEN($I198),"",INT(MOD($I198/10^(COLUMNS($J:J)-1),10))*10^(COLUMNS($J:J)-1)) -> 0 | Q198: 1900-01-08 | W198: 0 | X198: 0 | Y198: 0 | Z198: =IF(COLUMNS($J:Z)>LEN($I198),"",INT(MOD($I198/10^(COLUMNS($J:Z)-1),10))*10^(COLUMNS($J:Z)-1)) -> 
A199: 2023-03-09 | G199: 0 | H199: 0 | I199: 0 | J199: =IF(COLUMNS($J:J)>LEN($I199),"",INT(MOD($I199/10^(COLUMNS($J:J)-1),10))*10^(COLUMNS($J:J)-1)) -> 0 | Q199: 1900-01-08 | W199: 0 | X199: 0 | Y199: 0 | Z199: =IF(COLUMNS($J:Z)>LEN($I199),"",INT(MOD($I199/10^(COLUMNS($J:Z)-1),10))*10^(COLUMNS($J:Z)-1)) -> 
A200: 2023-03-09 | G200: 0 | H200: 0 | I200: 0 | J200: =IF(COLUMNS($J:J)>LEN($I200),"",INT(MOD($I200/10^(COLUMNS($J:J)-1),10))*10^(COLUMNS($J:J)-1)) -> 0 | Q200: 1900-01-08 | W200: 0 | X200: 0 | Y200: 0 | Z200: =IF(COLUMNS($J:Z)>LEN($I200),"",INT(MOD($I200/10^(COLUMNS($J:Z)-1),10))*10^(COLUMNS($J:Z)-1)) -> 
... 555 more rows
